DepartmentFamily,Entity,Date,ExpenseType,ExpenseArea,Supplier,TransactionNumber,Amount,VATRegistrationNo
BIS,The Insolvency Service,01/09/2014,Postage,OFFICIAL RECEIVER SERVICES                                                                          ,ABACUS EXPRESS,BA0000279089,27.41,417924146
BIS,The Insolvency Service,01/09/2014,Accommodation,OFFICIAL RECEIVER SERVICES                                                                          ,Accordia Supermarket                                        ,BA0000279610,24.60,
BIS,The Insolvency Service,01/09/2014,Office Supplies and Services,FINANCE AND COMMERCIAL                                                                              ,AMAZON.CO.UK LTD,BA0000279610,12.99,727255821
BIS,The Insolvency Service,01/09/2014,Office Supplies and Services,FINANCE AND COMMERCIAL                                                                              ,AMAZON.CO.UK LTD,BA0000279610,149.98,727255821
BIS,The Insolvency Service,01/09/2014,Office Supplies and Services,FINANCE AND COMMERCIAL                                                                              ,AMAZON.CO.UK LTD,BA0000279610,11.98,727255821
BIS,The Insolvency Service,01/09/2014,Employee Related Costs,PEOPLE & CAPABILITY                                                                                 ,AMAZON.CO.UK LTD,BA0000279610,66.31,727255821
BIS,The Insolvency Service,01/09/2014,Office Supplies and Services,FINANCE AND COMMERCIAL                                                                              ,AMAZON.CO.UK LTD,BA0000279610,34.80,727255821
BIS,The Insolvency Service,01/09/2014,Office Supplies and Services,FINANCE AND COMMERCIAL                                                                              ,AMAZON.CO.UK LTD,BA0000279610,857.34,727255821
BIS,The Insolvency Service,01/09/2014,Office Supplies and Services,FINANCE AND COMMERCIAL                                                                              ,AMAZON.CO.UK LTD,BA0000279610,14.40,727255821
BIS,The Insolvency Service,01/09/2014,Office Supplies and Services,FINANCE AND COMMERCIAL                                                                              ,AMAZON.CO.UK LTD,BA0000279610,57.60,727255821
BIS,The Insolvency Service,01/09/2014,Office Supplies and Services,INFORMATION TECHNOLOGY                                                                              ,AMAZON.CO.UK LTD,BA0000279610,37.94,727255821
BIS,The Insolvency Service,01/09/2014,Office Supplies and Services,FINANCE AND COMMERCIAL                                                                              ,AMAZON.CO.UK LTD,BA0000279610,74.10,727255821
BIS,The Insolvency Service,01/09/2014,Office Supplies and Services,BUSINESS SERVICES DIRECTORATE                                                                       ,AMAZON.CO.UK LTD,BA0000279610,5.70,727255821
BIS,The Insolvency Service,01/09/2014,Employee Related Costs,FINANCE AND COMMERCIAL                                                                              ,AMAZON.CO.UK LTD,BA0000279610,16.04,727255821
BIS,The Insolvency Service,01/09/2014,Office Supplies and Services,BUSINESS SERVICES DIRECTORATE                                                                       ,AMAZON.CO.UK LTD,BA0000279610,8.66,727255821
BIS,The Insolvency Service,01/09/2014,Office Supplies and Services,BUSINESS SERVICES DIRECTORATE                                                                       ,AMAZON.CO.UK LTD,BA0000279610,26.90,727255821
BIS,The Insolvency Service,01/09/2014,Accommodation,OFFICIAL RECEIVER SERVICES                                                                          ,AMAZON.CO.UK LTD,BA0000279610,8.52,727255821
BIS,The Insolvency Service,01/09/2014,Employee Related Costs,PEOPLE & CAPABILITY                                                                                 ,AMAZON.CO.UK LTD,BA0000279610,49.46,727255821
BIS,The Insolvency Service,01/09/2014,Computer and IT Systems,INFORMATION TECHNOLOGY                                                                              ,AMAZON.CO.UK LTD,BA0000279610,237.93,727255821
BIS,The Insolvency Service,01/09/2014,Office Supplies and Services,FINANCE AND COMMERCIAL                                                                              ,AMAZON.CO.UK LTD,BA0000279610,6.99,727255821
BIS,The Insolvency Service,01/09/2014,Office Supplies and Services,FINANCE AND COMMERCIAL                                                                              ,AMAZON.CO.UK LTD,BA0000279610,68.25,727255821
BIS,The Insolvency Service,01/09/2014,Office Supplies and Services,OFFICIAL RECEIVER SERVICES                                                                          ,AMAZON.CO.UK LTD,BA0000279610,43.60,727255821
BIS,The Insolvency Service,01/09/2014,Office Supplies and Services,FINANCE AND COMMERCIAL                                                                              ,AMMERHURST LTD,BA0000279610,44.95,231097780
BIS,The Insolvency Service,01/09/2014,Computer and IT Systems,BUSINESS SERVICES DIRECTORATE                                                                       ,ATLASSIAN                                                   ,BA0000279610,150.94,
BIS,The Insolvency Service,01/09/2014,Computer and IT Systems,BUSINESS SERVICES DIRECTORATE                                                                       ,ATLASSIAN                                                   ,BA0000279610,4.15,
BIS,The Insolvency Service,01/09/2014,Computer and IT Systems,INFORMATION TECHNOLOGY                                                                              ,ATOS IT SERVICES UK LTD,BA0000279092,"21,209.00",
BIS,The Insolvency Service,01/09/2014,Computer and IT Systems,INFORMATION TECHNOLOGY                                                                              ,ATOS IT SERVICES UK LTD,BA0000279093,"107,384.00",
BIS,The Insolvency Service,01/09/2014,Agency Workers,FINANCE AND COMMERCIAL                                                                              ,BADENOCH & CLARK,BA0000279049,930.00,232347975
BIS,The Insolvency Service,01/09/2014,Computer and IT Systems,PROJECTS                                                                                            ,BADENOCH & CLARK,BA0000279042,"3,300.00",232347975
BIS,The Insolvency Service,01/09/2014,Telecoms,FINANCE AND COMMERCIAL                                                                              ,BT TELEPHONE PAYMENT CENTRE,BA0000279610,110.16,245719348
BIS,The Insolvency Service,01/09/2014,Telecoms,FINANCE AND COMMERCIAL                                                                              ,BT TELEPHONE PAYMENT CENTRE,BA0000279610,76.41,245719348
BIS,The Insolvency Service,01/09/2014,Telecoms,FINANCE AND COMMERCIAL                                                                              ,BT TELEPHONE PAYMENT CENTRE,BA0000279610,77.88,245719348
BIS,The Insolvency Service,01/09/2014,Telecoms,FINANCE AND COMMERCIAL                                                                              ,BT TELEPHONE PAYMENT CENTRE,BA0000279610,99.83,245719348
BIS,The Insolvency Service,01/09/2014,Telecoms,FINANCE AND COMMERCIAL                                                                              ,BT TELEPHONE PAYMENT CENTRE,BA0000279610,26.11,245719348
BIS,The Insolvency Service,01/09/2014,Telecoms,FINANCE AND COMMERCIAL                                                                              ,BT TELEPHONE PAYMENT CENTRE,BA0000279610,81.80,245719348
BIS,The Insolvency Service,01/09/2014,Telecoms,FINANCE AND COMMERCIAL                                                                              ,BT TELEPHONE PAYMENT CENTRE,BA0000279610,134.47,245719348
BIS,The Insolvency Service,01/09/2014,Telecoms,FINANCE AND COMMERCIAL                                                                              ,BT TELEPHONE PAYMENT CENTRE,BA0000279610,88.08,245719348
BIS,The Insolvency Service,01/09/2014,Telecoms,FINANCE AND COMMERCIAL                                                                              ,BT TELEPHONE PAYMENT CENTRE,BA0000279610,142.30,245719348
BIS,The Insolvency Service,01/09/2014,Telecoms,FINANCE AND COMMERCIAL                                                                              ,BT TELEPHONE PAYMENT CENTRE,BA0000279610,87.47,245719348
BIS,The Insolvency Service,01/09/2014,Telecoms,FINANCE AND COMMERCIAL                                                                              ,BT TELEPHONE PAYMENT CENTRE,BA0000279610,150.56,245719348
BIS,The Insolvency Service,01/09/2014,Telecoms,INFORMATION TECHNOLOGY                                                                              ,BT TELEPHONE PAYMENT CENTRE,BA0000279610,72.30,245719348
BIS,The Insolvency Service,01/09/2014,Telecoms,INFORMATION TECHNOLOGY                                                                              ,BT TELEPHONE PAYMENT CENTRE,BA0000279610,86.47,245719348
BIS,The Insolvency Service,01/09/2014,Telecoms,INFORMATION TECHNOLOGY                                                                              ,BT TELEPHONE PAYMENT CENTRE,BA0000279610,102.59,245719348
BIS,The Insolvency Service,01/09/2014,Telecoms,FINANCE AND COMMERCIAL                                                                              ,BT TELEPHONE PAYMENT CENTRE,BA0000279610,76.60,245719348
BIS,The Insolvency Service,01/09/2014,Telecoms,FINANCE AND COMMERCIAL                                                                              ,BT TELEPHONE PAYMENT CENTRE,BA0000279610,82.97,245719348
BIS,The Insolvency Service,01/09/2014,Telecoms,FINANCE AND COMMERCIAL                                                                              ,BT TELEPHONE PAYMENT CENTRE,BA0000279610,87.54,245719348
BIS,The Insolvency Service,01/09/2014,Telecoms,FINANCE AND COMMERCIAL                                                                              ,BT TELEPHONE PAYMENT CENTRE,BA0000279610,121.55,245719348
BIS,The Insolvency Service,01/09/2014,Telecoms,FINANCE AND COMMERCIAL                                                                              ,BT TELEPHONE PAYMENT CENTRE,BA0000279610,139.05,245719348
BIS,The Insolvency Service,01/09/2014,Accommodation,ESTATES,CARILLION SERVICE SOLUTIONS,BA0000279026,"161,977.50",
BIS,The Insolvency Service,01/09/2014,Accommodation,ESTATES,CBRE LIMITED,BA0000279076,"3,805.95",
BIS,The Insolvency Service,01/09/2014,Accommodation,ESTATES,CBRE LIMITED,BA0000279077,"3,845.91",
BIS,The Insolvency Service,01/09/2014,Insolvency Case Related Costs,OFFICIAL RECEIVER SERVICES                                                                          ,COLEGIO REGISTRADORES C,BA0000279610,8.69,
BIS,The Insolvency Service,01/09/2014,Insolvency Case Related Costs,OFFICIAL RECEIVER SERVICES                                                                          ,COLEGIO REGISTRADORES C,BA0000279610,0.24,
BIS,The Insolvency Service,01/09/2014,Insolvency Case Related Costs,OFFICIAL RECEIVER SERVICES                                                                          ,COMPANIES HOUSE,BA0000279051,43.00,GD255
BIS,The Insolvency Service,01/09/2014,Insolvency Case Related Costs,OFFICIAL RECEIVER SERVICES                                                                          ,COMPANIES HOUSE,BA0000279052,81.00,GD255
BIS,The Insolvency Service,01/09/2014,Office Supplies and Services,OFFICIAL RECEIVER SERVICES                                                                          ,CREST MEDICAL LTD,BA0000279610,53.80,927193604
BIS,The Insolvency Service,01/09/2014,Insolvency Case Related Costs,OFFICIAL RECEIVER SERVICES                                                                          ,CUTHBERT & KINGSLEY,BA0000279048,120.00,420142906
BIS,The Insolvency Service,01/09/2014,Office Supplies and Services,CUSTOMER AND COMMUNICATIONS                                                                         ,DOLLAR PHOTO CLUB                                           ,BA0000279610,59.76,
BIS,The Insolvency Service,01/09/2014,Office Supplies and Services,CUSTOMER AND COMMUNICATIONS                                                                         ,DOLLAR PHOTO CLUB                                           ,BA0000279610,1.64,
BIS,The Insolvency Service,01/09/2014,Travel and Subsistence,OFFICIAL RECEIVER SERVICES                                                                          ,EAST MIDLANDS TRAINS,BA0000279610,83.50,
BIS,The Insolvency Service,01/09/2014,Travel and Subsistence,OFFICIAL RECEIVER SERVICES                                                                          ,EC MAINLINE CO T/O,BA0000279610,12.90,
BIS,The Insolvency Service,01/09/2014,Travel and Subsistence,OFFICIAL RECEIVER SERVICES                                                                          ,ECML NEWCASTLE PARKING,BA0000279610,15.00,
BIS,The Insolvency Service,01/09/2014,Telecoms,BUSINESS SERVICES DIRECTORATE                                                                       ,FASTHOSTS INTERNET,BA0000279610,105.91,
BIS,The Insolvency Service,01/09/2014,Computer and IT Systems,INFORMATION TECHNOLOGY                                                                              ,FIRST FORENSIC FORUM,BA0000279090,180.00,
BIS,The Insolvency Service,01/09/2014,Investigation and Enforcement Costs,INVESTIGATIONS & ENFORCEMENT                                                                        ,FTI CONSULTING LLP,BA0000279025,"1,426.50",867255490
BIS,The Insolvency Service,01/09/2014,Travel and Subsistence,OFFICIAL RECEIVER SERVICES                                                                          ,GREATER ANGLIA RAILWAY                                      ,BA0000279610,46.30,
BIS,The Insolvency Service,01/09/2014,Accommodation,OFFICIAL RECEIVER SERVICES                                                                          ,GREENHAM TRADING LTD,BA0000279610,273.53,823820932
BIS,The Insolvency Service,01/09/2014,Postage,INFORMATION TECHNOLOGY                                                                              ,HALFORDS                                                    ,BA0000279610,9.99,
BIS,The Insolvency Service,01/09/2014,Travel and Subsistence,FINANCE AND COMMERCIAL,HOTELSMART,BA0000279610,198.99,
BIS,The Insolvency Service,01/09/2014,Travel and Subsistence,FINANCE AND COMMERCIAL,HRG UK,BA0000279610,56.25,
BIS,The Insolvency Service,01/09/2014,Travel and Subsistence,FINANCE AND COMMERCIAL,HRG UK,BA0000279610,6.05,
BIS,The Insolvency Service,01/09/2014,Travel and Subsistence,FINANCE AND COMMERCIAL,HRG UK,BA0000279610,198.58,
BIS,The Insolvency Service,01/09/2014,Travel and Subsistence,FINANCE AND COMMERCIAL,HRG UK,BA0000279610,6.42,
BIS,The Insolvency Service,01/09/2014,Travel and Subsistence,FINANCE AND COMMERCIAL,HRG UK,BA0000279610,217.12,
BIS,The Insolvency Service,01/09/2014,Travel and Subsistence,FINANCE AND COMMERCIAL,HRG UK,BA0000279610,-69.00,
BIS,The Insolvency Service,01/09/2014,Travel and Subsistence,FINANCE AND COMMERCIAL,HRG UK,BA0000279610,69.00,
BIS,The Insolvency Service,01/09/2014,Travel and Subsistence,FINANCE AND COMMERCIAL,HRG UK,BA0000279610,-15.52,
BIS,The Insolvency Service,01/09/2014,Travel and Subsistence,FINANCE AND COMMERCIAL,HRG UK,BA0000279610,6.31,
BIS,The Insolvency Service,01/09/2014,Travel and Subsistence,FINANCE AND COMMERCIAL,HRG UK,BA0000279610,15.52,
BIS,The Insolvency Service,01/09/2014,Travel and Subsistence,FINANCE AND COMMERCIAL,HRG UK,BA0000279610,6.30,
BIS,The Insolvency Service,01/09/2014,Travel and Subsistence,FINANCE AND COMMERCIAL,HRG UK,BA0000279610,196.52,
BIS,The Insolvency Service,01/09/2014,Travel and Subsistence,FINANCE AND COMMERCIAL,HRG UK,BA0000279610,84.00,
BIS,The Insolvency Service,01/09/2014,Travel and Subsistence,FINANCE AND COMMERCIAL,HRG UK,BA0000279610,6.48,
BIS,The Insolvency Service,01/09/2014,Travel and Subsistence,FINANCE AND COMMERCIAL,HRG UK,BA0000279610,227.42,
BIS,The Insolvency Service,01/09/2014,Travel and Subsistence,FINANCE AND COMMERCIAL,HRG UK,BA0000279610,5.75,
BIS,The Insolvency Service,01/09/2014,Travel and Subsistence,FINANCE AND COMMERCIAL,HRG UK,BA0000279610,105.80,
BIS,The Insolvency Service,01/09/2014,Travel and Subsistence,FINANCE AND COMMERCIAL,HRG UK,BA0000279610,54.00,
BIS,The Insolvency Service,01/09/2014,Travel and Subsistence,FINANCE AND COMMERCIAL,HRG UK,BA0000279610,95.80,
BIS,The Insolvency Service,01/09/2014,Travel and Subsistence,FINANCE AND COMMERCIAL,HRG UK,BA0000279610,67.50,
BIS,The Insolvency Service,01/09/2014,Travel and Subsistence,FINANCE AND COMMERCIAL,HRG UK,BA0000279610,65.00,
BIS,The Insolvency Service,01/09/2014,Agency Workers,FINANCE AND COMMERCIAL,HUDSON GLOBAL RESOURCES LTD,BA0000279068,"2,247.36",
BIS,The Insolvency Service,01/09/2014,Insolvency Case Related Costs,FINANCE AND COMMERCIAL,INSOLVENCY SERVICE,BA0000279036,19.15,
BIS,The Insolvency Service,01/09/2014,Insolvency Case Related Costs,FINANCE AND COMMERCIAL,INSOLVENCY SERVICE,BA0000279036,22.14,
BIS,The Insolvency Service,01/09/2014,Insolvency Case Related Costs,FINANCE AND COMMERCIAL,INSOLVENCY SERVICE,BA0000279036,22.88,
BIS,The Insolvency Service,01/09/2014,Insolvency Case Related Costs,FINANCE AND COMMERCIAL,INSOLVENCY SERVICE,BA0000279036,29.61,
BIS,The Insolvency Service,01/09/2014,Insolvency Case Related Costs,FINANCE AND COMMERCIAL,INSOLVENCY SERVICE,BA0000279036,37.09,
BIS,The Insolvency Service,01/09/2014,Insolvency Case Related Costs,FINANCE AND COMMERCIAL,INSOLVENCY SERVICE,BA0000279036,45.41,
BIS,The Insolvency Service,01/09/2014,Insolvency Case Related Costs,FINANCE AND COMMERCIAL,INSOLVENCY SERVICE,BA0000279036,52.52,
BIS,The Insolvency Service,01/09/2014,Insolvency Case Related Costs,FINANCE AND COMMERCIAL,INSOLVENCY SERVICE,BA0000279036,101.63,
BIS,The Insolvency Service,01/09/2014,Insolvency Case Related Costs,FINANCE AND COMMERCIAL,INSOLVENCY SERVICE,BA0000279036,165.96,
BIS,The Insolvency Service,01/09/2014,Insolvency Case Related Costs,FINANCE AND COMMERCIAL,INSOLVENCY SERVICE,BA0000279036,172.03,
BIS,The Insolvency Service,01/09/2014,Insolvency Case Related Costs,FINANCE AND COMMERCIAL,INSOLVENCY SERVICE,BA0000279036,630.65,
BIS,The Insolvency Service,01/09/2014,Insolvency Case Related Costs,FINANCE AND COMMERCIAL,INSOLVENCY SERVICE,BA0000279036,695.13,
BIS,The Insolvency Service,01/09/2014,Insolvency Case Related Costs,FINANCE AND COMMERCIAL,INSOLVENCY SERVICE,BA0000279036,918.56,
BIS,The Insolvency Service,01/09/2014,Insolvency Case Related Costs,FINANCE AND COMMERCIAL,INSOLVENCY SERVICE,BA0000279036,"1,099.59",
BIS,The Insolvency Service,01/09/2014,Insolvency Case Related Costs,FINANCE AND COMMERCIAL,INSOLVENCY SERVICE,BA0000279036,"2,338.63",
BIS,The Insolvency Service,01/09/2014,Insolvency Case Related Costs,FINANCE AND COMMERCIAL,INSOLVENCY SERVICE,BA0000279036,"2,855.31",
BIS,The Insolvency Service,01/09/2014,Insolvency Case Related Costs,FINANCE AND COMMERCIAL,INSOLVENCY SERVICE,BA0000279036,"3,159.12",
BIS,The Insolvency Service,01/09/2014,Travel and Subsistence,INVESTIGATIONS & ENFORCEMENT                                                                        ,LONDON & SOUTH EAS,BA0000279610,11.40,
BIS,The Insolvency Service,01/09/2014,Travel and Subsistence,OFFICIAL RECEIVER SERVICES                                                                          ,LUL TICKET MACHINE,BA0000279610,20.00,
BIS,The Insolvency Service,01/09/2014,Travel and Subsistence,OFFICIAL RECEIVER SERVICES                                                                          ,LUL TICKET OFFICE,BA0000279610,20.00,
BIS,The Insolvency Service,01/09/2014,Office Machinery,FINANCE AND COMMERCIAL                                                                              ,MAPLIN ELECTICAL STORES,BA0000279610,49.99,
BIS,The Insolvency Service,01/09/2014,Office Machinery,FINANCE AND COMMERCIAL                                                                              ,MAPLIN ELECTICAL STORES,BA0000279610,-49.99,
BIS,The Insolvency Service,01/09/2014,Computer and IT Systems,FINANCE AND COMMERCIAL,MCAFEE                                                      ,BA0000279610,74.99,
BIS,The Insolvency Service,01/09/2014,Telecoms,FINANCE AND COMMERCIAL                                                                              ,Media & Communications Ltd                                  ,BA0000279610,73.20,
BIS,The Insolvency Service,01/09/2014,Agency Workers,CUSTOMER AND COMMUNICATIONS                                                                         ,MICHAEL PAGE INTERNATIONAL RECRUITMENT LTD,BA0000279069,"1,320.00",354259936
BIS,The Insolvency Service,01/09/2014,Agency Workers,CUSTOMER AND COMMUNICATIONS                                                                         ,MICHAEL PAGE INTERNATIONAL RECRUITMENT LTD,BA0000279070,"1,287.89",354259936
BIS,The Insolvency Service,01/09/2014,Computer and IT Systems,INFORMATION TECHNOLOGY                                                                              ,MINILAPTOPACCESSORIES                                       ,BA0000279610,"4,200.00",
BIS,The Insolvency Service,01/09/2014,Accommodation,OFFICIAL RECEIVER SERVICES                                                                          ,MORRISONS                                                   ,BA0000279610,4.27,
BIS,The Insolvency Service,01/09/2014,Travel and Subsistence,OFFICIAL RECEIVER SERVICES                                                                          ,NCP PARKING,BA0000279610,6.00,
BIS,The Insolvency Service,01/09/2014,Travel and Subsistence,OFFICIAL RECEIVER SERVICES                                                                          ,NCP PARKING,BA0000279610,6.00,
BIS,The Insolvency Service,01/09/2014,Telecoms,FINANCE AND COMMERCIAL                                                                              ,ONEDIRECT                                                   ,BA0000279610,38.39,
BIS,The Insolvency Service,01/09/2014,Travel and Subsistence,OFFICIAL RECEIVER SERVICES                                                                          ,OYSTER AUTO TOP UP,BA0000279610,20.00,
BIS,The Insolvency Service,01/09/2014,Travel and Subsistence,OFFICIAL RECEIVER SERVICES                                                                          ,OYSTER AUTO TOP UP,BA0000279610,20.00,
BIS,The Insolvency Service,01/09/2014,Travel and Subsistence,OFFICIAL RECEIVER SERVICES                                                                          ,OYSTER AUTO TOP UP,BA0000279610,20.00,
BIS,The Insolvency Service,01/09/2014,Travel and Subsistence,OFFICIAL RECEIVER SERVICES                                                                          ,OYSTER AUTO TOP UP,BA0000279610,20.00,
BIS,The Insolvency Service,01/09/2014,Office Supplies and Services,FINANCE AND COMMERCIAL                                                                              ,PAPERCUTZ.CO.UK,BA0000279610,11.99,
BIS,The Insolvency Service,01/09/2014,Computer and IT Systems,INFORMATION TECHNOLOGY                                                                              ,PARITY PROFESSIONALS LTD                                    ,BA0000279044,"10,920.12",649913985
BIS,The Insolvency Service,01/09/2014,Travel and Subsistence,OFFICIAL RECEIVER SERVICES                                                                          ,PAYBYPHONE PARKING,BA0000279610,12.20,
BIS,The Insolvency Service,01/09/2014,Travel and Subsistence,OFFICIAL RECEIVER SERVICES                                                                          ,PAYBYPHONE PARKING,BA0000279610,6.20,
BIS,The Insolvency Service,01/09/2014,Computer and IT Systems,BUSINESS SERVICES DIRECTORATE                                                                       ,PLUSNET PLC,BA0000279610,34.19,
BIS,The Insolvency Service,01/09/2014,Accommodation,FINANCE AND COMMERCIAL                                                                              ,POSTURITE (UK) LTD.,BA0000279610,714.66,
BIS,The Insolvency Service,01/09/2014,Accommodation,FINANCE AND COMMERCIAL                                                                              ,POSTURITE (UK) LTD.,BA0000279610,897.84,
BIS,The Insolvency Service,01/09/2014,Accommodation,FINANCE AND COMMERCIAL                                                                              ,POSTURITE (UK) LTD.,BA0000279610,127.45,
BIS,The Insolvency Service,01/09/2014,Employee Related Costs,FINANCE AND COMMERCIAL                                                                              ,POSTURITE (UK) LTD.,BA0000279610,35.65,
BIS,The Insolvency Service,01/09/2014,Employee Related Costs,FINANCE AND COMMERCIAL                                                                              ,POSTURITE (UK) LTD.,BA0000279610,838.54,
BIS,The Insolvency Service,01/09/2014,Accommodation,FINANCE AND COMMERCIAL                                                                              ,POSTURITE (UK) LTD.,BA0000279610,739.36,
BIS,The Insolvency Service,01/09/2014,Employee Related Costs,FINANCE AND COMMERCIAL                                                                              ,POSTURITE (UK) LTD.,BA0000279610,623.04,
BIS,The Insolvency Service,01/09/2014,Employee Related Costs,FINANCE AND COMMERCIAL                                                                              ,POSTURITE (UK) LTD.,BA0000279610,770.88,
BIS,The Insolvency Service,01/09/2014,Employee Related Costs,FINANCE AND COMMERCIAL                                                                              ,POSTURITE (UK) LTD.,BA0000279610,831.36,
BIS,The Insolvency Service,01/09/2014,Employee Related Costs,PEOPLE & CAPABILITY                                                                                 ,POSTURITE (UK) LTD.,BA0000279610,800.76,
BIS,The Insolvency Service,01/09/2014,Office Supplies and Services,OFFICIAL RECEIVER SERVICES                                                                          ,POWWOW GROUP HOLDINGS LTD                                   ,BA0000279054,211.80,944063233
BIS,The Insolvency Service,01/09/2014,Office Supplies and Services,OFFICIAL RECEIVER SERVICES                                                                          ,POWWOW GROUP HOLDINGS LTD                                   ,BA0000279054,388.20,944063233
BIS,The Insolvency Service,01/09/2014,Insolvency Case Related Costs,OFFICIAL RECEIVER SERVICES                                                                          ,REGISTRA S.L.,BA0000279610,28.92,
BIS,The Insolvency Service,01/09/2014,Insolvency Case Related Costs,OFFICIAL RECEIVER SERVICES                                                                          ,REGISTRA S.L.,BA0000279610,0.80,
BIS,The Insolvency Service,01/09/2014,Postage,ESTATES,ROYAL MAIL GROUP LTD,BA0000279043,"1,143.08",243170002
BIS,The Insolvency Service,01/09/2014,Postage,OFFICIAL RECEIVER SERVICES                                                                          ,ROYAL MAIL GROUP LTD,BA0000279053,5.03,243170002
BIS,The Insolvency Service,01/09/2014,Postage,OFFICIAL RECEIVER SERVICES                                                                          ,ROYAL MAIL GROUP LTD,BA0000279067,37.65,243170002
BIS,The Insolvency Service,01/09/2014,Postage,OFFICIAL RECEIVER SERVICES                                                                          ,ROYAL MAIL GROUP LTD,BA0000279067,"1,219.04",243170002
BIS,The Insolvency Service,01/09/2014,Accommodation,FINANCE AND COMMERCIAL                                                                              ,RS COMPONENTS LTD,BA0000279610,32.11,
BIS,The Insolvency Service,01/09/2014,Accommodation,OFFICIAL RECEIVER SERVICES                                                                          ,SAINSBURY'S S/MKT,BA0000279610,8.20,
BIS,The Insolvency Service,01/09/2014,Accommodation,ESTATES,SCOTTISH POWER,BA0000279050,636.32,659372008
BIS,The Insolvency Service,01/09/2014,Computer and IT Systems,FINANCE AND COMMERCIAL                                                                              ,SKY                                                         ,BA0000279610,20.50,
BIS,The Insolvency Service,01/09/2014,Travel and Subsistence,BUSINESS SERVICES DIRECTORATE                                                                       ,SKY AIRPORT                                                 ,BA0000279610,31.50,
BIS,The Insolvency Service,01/09/2014,Accommodation,OFFICIAL RECEIVER SERVICES                                                                          ,STAPLES - THE OFFICE SUPERSTORE,BA0000279610,2.49,
BIS,The Insolvency Service,01/09/2014,Accommodation,OFFICIAL RECEIVER SERVICES                                                                          ,STAPLES - THE OFFICE SUPERSTORE,BA0000279610,93.01,
BIS,The Insolvency Service,01/09/2014,Office Supplies and Services,OFFICIAL RECEIVER SERVICES                                                                          ,STAPLES - THE OFFICE SUPERSTORE,BA0000279610,9.49,
BIS,The Insolvency Service,01/09/2014,Travel and Subsistence,PEOPLE & CAPABILITY                                                                                 ,TAUNTON DEANE BOROUGH COU,BA0000279610,5.30,
BIS,The Insolvency Service,01/09/2014,Travel and Subsistence,OFFICIAL RECEIVER SERVICES                                                                          ,TESCO,BA0000279610,6.00,
BIS,The Insolvency Service,01/09/2014,Travel and Subsistence,OFFICIAL RECEIVER SERVICES                                                                          ,TFL TRAVEL INFO CENTRE,BA0000279610,20.00,
BIS,The Insolvency Service,01/09/2014,Travel and Subsistence,PEOPLE & CAPABILITY                                                                                 ,TRAINLINE.COM LIMITED,BA0000279610,36.57,791726106
BIS,The Insolvency Service,01/09/2014,Travel and Subsistence,BUSINESS SERVICES DIRECTORATE                                                                       ,TRAVELODGE,BA0000279610,215.30,
BIS,The Insolvency Service,01/09/2014,Travel and Subsistence,OFFICIAL RECEIVER SERVICES                                                                          ,TRAVELODGE,BA0000279610,99.65,
BIS,The Insolvency Service,01/09/2014,Computer and IT Systems,FINANCE AND COMMERCIAL,VIRGIN MEDIA BUSINESS,BA0000279610,25.98,591819014
BIS,The Insolvency Service,01/09/2014,Insolvency Case Related Costs,INVESTIGATIONS & ENFORCEMENT                                                                        ,WAKEFIELD COUNCIL,BA0000279610,27.00,
BIS,The Insolvency Service,01/09/2014,Insolvency Case Related Costs,INVESTIGATIONS & ENFORCEMENT                                                                        ,WAKEFIELD COUNCIL,BA0000279610,9.00,
BIS,The Insolvency Service,01/09/2014,Insolvency Case Related Costs,INVESTIGATIONS & ENFORCEMENT                                                                        ,WAKEFIELD COUNCIL,BA0000279610,9.00,
BIS,The Insolvency Service,01/09/2014,Insolvency Case Related Costs,INVESTIGATIONS & ENFORCEMENT                                                                        ,WAKEFIELD COUNCIL,BA0000279610,9.00,
BIS,The Insolvency Service,01/09/2014,Insolvency Case Related Costs,INVESTIGATIONS & ENFORCEMENT                                                                        ,WAKEFIELD COUNCIL,BA0000279610,9.00,
BIS,The Insolvency Service,01/09/2014,Travel and Subsistence,PEOPLE & CAPABILITY                                                                                 ,WEST COAST TRAINS,BA0000279610,5.00,
BIS,The Insolvency Service,01/09/2014,Travel and Subsistence,PEOPLE & CAPABILITY                                                                                 ,WEST COAST TRAINS,BA0000279610,5.00,
BIS,The Insolvency Service,01/09/2014,Office Supplies and Services,OFFICIAL RECEIVER SERVICES                                                                          ,Wilko Retail Ltd                                            ,BA0000279610,3.00,
BIS,The Insolvency Service,01/09/2014,Office Supplies and Services,OFFICIAL RECEIVER SERVICES                                                                          ,Wilko Retail Ltd                                            ,BA0000279610,8.59,
BIS,The Insolvency Service,01/09/2014,Office Machinery,OFFICIAL RECEIVER SERVICES                                                                          ,Wilko Retail Ltd                                            ,BA0000279610,9.75,
BIS,The Insolvency Service,01/09/2014,Office Machinery,OFFICIAL RECEIVER SERVICES                                                                          ,Wilko Retail Ltd                                            ,BA0000279610,13.00,
BIS,The Insolvency Service,01/09/2014,Computer and IT Systems,INVESTIGATIONS & ENFORCEMENT                                                                        ,WINZIP COMPUTING LLC                                        ,BA0000279610,8.95,
BIS,The Insolvency Service,01/09/2014,Accommodation,BUSINESS SERVICES DIRECTORATE                                                                       ,WWW.BOOKFHR.CO.UK                                           ,BA0000279610,8.99,
BIS,The Insolvency Service,01/09/2014,Training Costs,FINANCE AND COMMERCIAL                                                                              ,WWW.CIPS.ORG,BA0000279610,114.24,
BIS,The Insolvency Service,01/09/2014,Employee Related Costs,PEOPLE & CAPABILITY                                                                                 ,WWW.ERONOMICS.CO.UK                                         ,BA0000279610,139.08,
BIS,The Insolvency Service,01/09/2014,Insolvency Case Related Costs,FINANCE AND COMMERCIAL                                                                              ,WWW.ICO.GOV.UK                                              ,BA0000279610,35.00,
BIS,The Insolvency Service,01/09/2014,Accommodation,FINANCE AND COMMERCIAL                                                                              ,WWW.MAILCOMS.CO.UK                                          ,BA0000279610,64.38,
BIS,The Insolvency Service,01/09/2014,Office Supplies and Services,FINANCE AND COMMERCIAL                                                                              ,WWW.MAILCOMS.CO.UK                                          ,BA0000279610,64.38,
BIS,The Insolvency Service,01/09/2014,Employee Related Costs,PEOPLE & CAPABILITY                                                                                 ,WWW.OFFICECHAIRSUK.COM                                      ,BA0000279610,556.92,
BIS,The Insolvency Service,01/09/2014,Accommodation,FINANCE AND COMMERCIAL                                                                              ,X L DISPLAYS LTD                                            ,BA0000279610,905.76,
BIS,The Insolvency Service,01/09/2014,Office Supplies and Services,INFORMATION TECHNOLOGY                                                                              ,XMA LTD,BA0000279091,481.62,115091937
BIS,The Insolvency Service,01/09/2014,Office Supplies and Services,OFFICIAL RECEIVER SERVICES                                                                          ,XMA LTD,BA0000279091,58.34,115091937
BIS,The Insolvency Service,01/09/2014,Office Supplies and Services,OFFICIAL RECEIVER SERVICES                                                                          ,XMA LTD,BA0000279091,62.24,115091937
BIS,The Insolvency Service,01/09/2014,Office Supplies and Services,OFFICIAL RECEIVER SERVICES                                                                          ,XMA LTD,BA0000279091,192.65,115091937
BIS,The Insolvency Service,02/09/2014,Agency Workers,FINANCE AND COMMERCIAL,ALLEN LANE LIMITED,BA0000279157,"5,351.04",835970985
BIS,The Insolvency Service,02/09/2014,Agency Workers,FINANCE AND COMMERCIAL,ALLEN LANE LIMITED,BA0000279158,"2,864.23",835970985
BIS,The Insolvency Service,02/09/2014,Agency Workers,FINANCE AND COMMERCIAL,ALLEN LANE LIMITED,BA0000279170,"2,386.86",835970985
BIS,The Insolvency Service,02/09/2014,Agency Workers,FINANCE AND COMMERCIAL,ALLEN LANE LIMITED,BA0000279171,"2,675.52",835970985
BIS,The Insolvency Service,02/09/2014,Agency Workers,FINANCE AND COMMERCIAL,ALLEN LANE LIMITED,BA0000279172,"2,386.86",835970985
BIS,The Insolvency Service,02/09/2014,Agency Workers,FINANCE AND COMMERCIAL,ALLEN LANE LIMITED,BA0000279173,"2,386.86",835970985
BIS,The Insolvency Service,02/09/2014,Insolvency Case Related Costs,OFFICIAL RECEIVER SERVICES                                                                          ,COMPANIES HOUSE,BA0000279166,298.00,GD255
BIS,The Insolvency Service,02/09/2014,Computer and IT Systems,INFORMATION TECHNOLOGY                                                                              ,IBM UK LTD,BA0000279160,"12,596.00",107328000
BIS,The Insolvency Service,02/09/2014,Computer and IT Systems,INFORMATION TECHNOLOGY                                                                              ,IBM UK LTD,BA0000279161,"167,128.00",107328000
BIS,The Insolvency Service,02/09/2014,Postage,BUSINESS SERVICES DIRECTORATE                                                                       ,NEOPOST LTD - FRANKING TOP UPS,BA0000279156,100.00,
BIS,The Insolvency Service,02/09/2014,Postage,BUSINESS SERVICES DIRECTORATE                                                                       ,NEOPOST LTD - FRANKING TOP UPS,BA0000279156,300.00,
BIS,The Insolvency Service,02/09/2014,Postage,BUSINESS SERVICES DIRECTORATE                                                                       ,NEOPOST LTD - FRANKING TOP UPS,BA0000279156,330.00,
BIS,The Insolvency Service,02/09/2014,Postage,BUSINESS SERVICES DIRECTORATE                                                                       ,NEOPOST LTD - FRANKING TOP UPS,BA0000279156,333.00,
BIS,The Insolvency Service,02/09/2014,Postage,BUSINESS SERVICES DIRECTORATE                                                                       ,NEOPOST LTD - FRANKING TOP UPS,BA0000279156,800.00,
BIS,The Insolvency Service,02/09/2014,Postage,OFFICIAL RECEIVER SERVICES                                                                          ,NEOPOST LTD - FRANKING TOP UPS,BA0000279156,150.00,
BIS,The Insolvency Service,02/09/2014,Postage,OFFICIAL RECEIVER SERVICES                                                                          ,NEOPOST LTD - FRANKING TOP UPS,BA0000279156,200.00,
BIS,The Insolvency Service,02/09/2014,Postage,OFFICIAL RECEIVER SERVICES                                                                          ,NEOPOST LTD - FRANKING TOP UPS,BA0000279156,200.00,
BIS,The Insolvency Service,02/09/2014,Postage,OFFICIAL RECEIVER SERVICES                                                                          ,NEOPOST LTD - FRANKING TOP UPS,BA0000279156,400.00,
BIS,The Insolvency Service,02/09/2014,Postage,OFFICIAL RECEIVER SERVICES                                                                          ,NEOPOST LTD - FRANKING TOP UPS,BA0000279156,567.00,
BIS,The Insolvency Service,02/09/2014,Postage,OFFICIAL RECEIVER SERVICES                                                                          ,NEOPOST LTD - FRANKING TOP UPS,BA0000279156,670.00,
BIS,The Insolvency Service,02/09/2014,Postage,OFFICIAL RECEIVER SERVICES                                                                          ,NEOPOST LTD - FRANKING TOP UPS,BA0000279156,700.00,
BIS,The Insolvency Service,02/09/2014,Postage,OFFICIAL RECEIVER SERVICES                                                                          ,NEOPOST LTD - FRANKING TOP UPS,BA0000279156,"1,000.00",
BIS,The Insolvency Service,02/09/2014,Computer and IT Systems,INFORMATION TECHNOLOGY                                                                              ,PARITY PROFESSIONALS LTD                                    ,BA0000279159,"8,350.68",649913985
BIS,The Insolvency Service,02/09/2014,Travel and Subsistence,CUSTOMER AND COMMUNICATIONS                                                                         ,Staff Payment,BA0000279176,2.20,
BIS,The Insolvency Service,02/09/2014,Travel and Subsistence,INVESTIGATIONS & ENFORCEMENT                                                                        ,Staff Payment,BA0000279176,9.40,
BIS,The Insolvency Service,02/09/2014,Travel and Subsistence,FINANCE AND COMMERCIAL                                                                              ,Staff Payment,BA0000279176,20.00,
BIS,The Insolvency Service,02/09/2014,Travel and Subsistence,CUSTOMER AND COMMUNICATIONS                                                                         ,Staff Payment,BA0000279176,4.03,
BIS,The Insolvency Service,02/09/2014,Travel and Subsistence,CUSTOMER AND COMMUNICATIONS                                                                         ,Staff Payment,BA0000279176,19.85,
BIS,The Insolvency Service,02/09/2014,Travel and Subsistence,FINANCE AND COMMERCIAL                                                                              ,Staff Payment,BA0000279176,10.00,
BIS,The Insolvency Service,02/09/2014,Travel and Subsistence,INVESTIGATIONS & ENFORCEMENT                                                                        ,Staff Payment,BA0000279176,43.98,
BIS,The Insolvency Service,02/09/2014,Employee Related Costs,INVESTIGATIONS & ENFORCEMENT                                                                        ,Staff Payment,BA0000279176,4.25,
BIS,The Insolvency Service,02/09/2014,Telecoms,INFORMATION TECHNOLOGY                                                                              ,Staff Payment,BA0000279176,25.03,
BIS,The Insolvency Service,02/09/2014,Travel and Subsistence,BUSINESS SERVICES DIRECTORATE                                                                       ,Staff Payment,BA0000279176,43.50,
BIS,The Insolvency Service,02/09/2014,Travel and Subsistence,INVESTIGATIONS & ENFORCEMENT                                                                        ,Staff Payment,BA0000279176,8.80,
BIS,The Insolvency Service,02/09/2014,Travel and Subsistence,INVESTIGATIONS & ENFORCEMENT                                                                        ,Staff Payment,BA0000279176,6.60,
BIS,The Insolvency Service,02/09/2014,Travel and Subsistence,OFFICIAL RECEIVER SERVICES                                                                          ,Staff Payment,BA0000279176,50.00,
BIS,The Insolvency Service,02/09/2014,Travel and Subsistence,OFFICIAL RECEIVER SERVICES                                                                          ,Staff Payment,BA0000279176,2.40,
BIS,The Insolvency Service,02/09/2014,Travel and Subsistence,OFFICIAL RECEIVER SERVICES                                                                          ,Staff Payment,BA0000279176,3.00,
BIS,The Insolvency Service,02/09/2014,Travel and Subsistence,PEOPLE & CAPABILITY                                                                                 ,Staff Payment,BA0000279176,4.00,
BIS,The Insolvency Service,02/09/2014,Travel and Subsistence,BUSINESS SERVICES DIRECTORATE                                                                       ,Staff Payment,BA0000279176,101.70,
BIS,The Insolvency Service,02/09/2014,Travel and Subsistence,FINANCE AND COMMERCIAL                                                                              ,Staff Payment,BA0000279176,156.60,
BIS,The Insolvency Service,02/09/2014,Travel and Subsistence,INFORMATION TECHNOLOGY                                                                              ,Staff Payment,BA0000279176,8.00,
BIS,The Insolvency Service,02/09/2014,Travel and Subsistence,INFORMATION TECHNOLOGY                                                                              ,Staff Payment,BA0000279176,295.20,
BIS,The Insolvency Service,02/09/2014,Travel and Subsistence,INVESTIGATIONS & ENFORCEMENT                                                                        ,Staff Payment,BA0000279176,4.00,
BIS,The Insolvency Service,02/09/2014,Travel and Subsistence,INVESTIGATIONS & ENFORCEMENT                                                                        ,Staff Payment,BA0000279176,121.30,
BIS,The Insolvency Service,02/09/2014,Travel and Subsistence,INVESTIGATIONS & ENFORCEMENT                                                                        ,Staff Payment,BA0000279176,8.50,
BIS,The Insolvency Service,02/09/2014,Travel and Subsistence,INVESTIGATIONS & ENFORCEMENT                                                                        ,Staff Payment,BA0000279176,429.30,
BIS,The Insolvency Service,02/09/2014,Travel and Subsistence,INVESTIGATIONS & ENFORCEMENT                                                                        ,Staff Payment,BA0000279176,8.00,
BIS,The Insolvency Service,02/09/2014,Travel and Subsistence,INVESTIGATIONS & ENFORCEMENT                                                                        ,Staff Payment,BA0000279176,45.00,
BIS,The Insolvency Service,02/09/2014,Travel and Subsistence,INVESTIGATIONS & ENFORCEMENT                                                                        ,Staff Payment,BA0000279176,27.45,
BIS,The Insolvency Service,02/09/2014,Travel and Subsistence,INVESTIGATIONS & ENFORCEMENT                                                                        ,Staff Payment,BA0000279176,6.00,
BIS,The Insolvency Service,02/09/2014,Travel and Subsistence,INVESTIGATIONS & ENFORCEMENT                                                                        ,Staff Payment,BA0000279176,50.40,
BIS,The Insolvency Service,02/09/2014,Travel and Subsistence,OFFICIAL RECEIVER SERVICES                                                                          ,Staff Payment,BA0000279176,3.00,
BIS,The Insolvency Service,02/09/2014,Travel and Subsistence,OFFICIAL RECEIVER SERVICES                                                                          ,Staff Payment,BA0000279176,27.00,
BIS,The Insolvency Service,02/09/2014,Travel and Subsistence,OFFICIAL RECEIVER SERVICES                                                                          ,Staff Payment,BA0000279176,7.65,
BIS,The Insolvency Service,02/09/2014,Travel and Subsistence,OFFICIAL RECEIVER SERVICES                                                                          ,Staff Payment,BA0000279176,8.00,
BIS,The Insolvency Service,02/09/2014,Travel and Subsistence,OFFICIAL RECEIVER SERVICES                                                                          ,Staff Payment,BA0000279176,15.00,
BIS,The Insolvency Service,02/09/2014,Travel and Subsistence,OFFICIAL RECEIVER SERVICES                                                                          ,Staff Payment,BA0000279176,18.90,
BIS,The Insolvency Service,02/09/2014,Travel and Subsistence,OFFICIAL RECEIVER SERVICES                                                                          ,Staff Payment,BA0000279176,16.00,
BIS,The Insolvency Service,02/09/2014,Travel and Subsistence,OFFICIAL RECEIVER SERVICES                                                                          ,Staff Payment,BA0000279176,22.50,
BIS,The Insolvency Service,02/09/2014,Travel and Subsistence,OFFICIAL RECEIVER SERVICES                                                                          ,Staff Payment,BA0000279176,5.50,
BIS,The Insolvency Service,02/09/2014,Travel and Subsistence,OFFICIAL RECEIVER SERVICES                                                                          ,Staff Payment,BA0000279176,31.50,
BIS,The Insolvency Service,02/09/2014,Travel and Subsistence,OFFICIAL RECEIVER SERVICES                                                                          ,Staff Payment,BA0000279176,9.00,
BIS,The Insolvency Service,02/09/2014,Travel and Subsistence,OFFICIAL RECEIVER SERVICES                                                                          ,Staff Payment,BA0000279176,13.50,
BIS,The Insolvency Service,02/09/2014,Travel and Subsistence,OFFICIAL RECEIVER SERVICES                                                                          ,Staff Payment,BA0000279176,6.40,
BIS,The Insolvency Service,02/09/2014,Travel and Subsistence,OFFICIAL RECEIVER SERVICES                                                                          ,Staff Payment,BA0000279176,20.70,
BIS,The Insolvency Service,02/09/2014,Travel and Subsistence,OFFICIAL RECEIVER SERVICES                                                                          ,Staff Payment,BA0000279176,19.80,
BIS,The Insolvency Service,02/09/2014,Travel and Subsistence,OFFICIAL RECEIVER SERVICES                                                                          ,Staff Payment,BA0000279176,13.00,
BIS,The Insolvency Service,02/09/2014,Travel and Subsistence,PEOPLE & CAPABILITY                                                                                 ,Staff Payment,BA0000279176,3.00,
BIS,The Insolvency Service,02/09/2014,Travel and Subsistence,PEOPLE & CAPABILITY                                                                                 ,Staff Payment,BA0000279176,3.00,
BIS,The Insolvency Service,02/09/2014,Travel and Subsistence,PEOPLE & CAPABILITY                                                                                 ,Staff Payment,BA0000279176,11.80,
BIS,The Insolvency Service,02/09/2014,Travel and Subsistence,BUSINESS SERVICES DIRECTORATE                                                                       ,Staff Payment,BA0000279176,17.00,
BIS,The Insolvency Service,02/09/2014,Travel and Subsistence,PEOPLE & CAPABILITY                                                                                 ,Staff Payment,BA0000279176,21.00,
BIS,The Insolvency Service,02/09/2014,Travel and Subsistence,PEOPLE & CAPABILITY                                                                                 ,Staff Payment,BA0000279176,21.00,
BIS,The Insolvency Service,02/09/2014,Travel and Subsistence,BUSINESS SERVICES DIRECTORATE                                                                       ,Staff Payment,BA0000279176,13.25,
BIS,The Insolvency Service,02/09/2014,Travel and Subsistence,BUSINESS SERVICES DIRECTORATE                                                                       ,Staff Payment,BA0000279176,19.99,
BIS,The Insolvency Service,02/09/2014,Travel and Subsistence,BUSINESS SERVICES DIRECTORATE                                                                       ,Staff Payment,BA0000279176,2.77,
BIS,The Insolvency Service,02/09/2014,Travel and Subsistence,BUSINESS SERVICES DIRECTORATE                                                                       ,Staff Payment,BA0000279176,5.00,
BIS,The Insolvency Service,02/09/2014,Travel and Subsistence,BUSINESS SERVICES DIRECTORATE                                                                       ,Staff Payment,BA0000279176,39.80,
BIS,The Insolvency Service,02/09/2014,Travel and Subsistence,FINANCE AND COMMERCIAL                                                                              ,Staff Payment,BA0000279176,14.10,
BIS,The Insolvency Service,02/09/2014,Travel and Subsistence,INVESTIGATIONS & ENFORCEMENT                                                                        ,Staff Payment,BA0000279176,15.00,
BIS,The Insolvency Service,02/09/2014,Travel and Subsistence,INVESTIGATIONS & ENFORCEMENT                                                                        ,Staff Payment,BA0000279176,5.00,
BIS,The Insolvency Service,02/09/2014,Travel and Subsistence,INVESTIGATIONS & ENFORCEMENT                                                                        ,Staff Payment,BA0000279176,25.00,
BIS,The Insolvency Service,02/09/2014,Travel and Subsistence,INVESTIGATIONS & ENFORCEMENT                                                                        ,Staff Payment,BA0000279176,2.30,
BIS,The Insolvency Service,02/09/2014,Travel and Subsistence,INVESTIGATIONS & ENFORCEMENT                                                                        ,Staff Payment,BA0000279176,3.30,
BIS,The Insolvency Service,02/09/2014,Travel and Subsistence,INVESTIGATIONS & ENFORCEMENT                                                                        ,Staff Payment,BA0000279176,9.30,
BIS,The Insolvency Service,02/09/2014,Travel and Subsistence,INVESTIGATIONS & ENFORCEMENT                                                                        ,Staff Payment,BA0000279176,5.00,
BIS,The Insolvency Service,02/09/2014,Travel and Subsistence,INVESTIGATIONS & ENFORCEMENT                                                                        ,Staff Payment,BA0000279176,5.00,
BIS,The Insolvency Service,02/09/2014,Travel and Subsistence,INVESTIGATIONS & ENFORCEMENT                                                                        ,Staff Payment,BA0000279176,5.00,
BIS,The Insolvency Service,02/09/2014,Travel and Subsistence,OFFICIAL RECEIVER SERVICES                                                                          ,Staff Payment,BA0000279176,5.00,
BIS,The Insolvency Service,02/09/2014,Travel and Subsistence,OFFICIAL RECEIVER SERVICES                                                                          ,Staff Payment,BA0000279176,6.50,
BIS,The Insolvency Service,02/09/2014,Travel and Subsistence,OFFICIAL RECEIVER SERVICES                                                                          ,Staff Payment,BA0000279176,8.98,
BIS,The Insolvency Service,02/09/2014,Travel and Subsistence,OFFICIAL RECEIVER SERVICES                                                                          ,Staff Payment,BA0000279176,5.00,
BIS,The Insolvency Service,02/09/2014,Travel and Subsistence,OFFICIAL RECEIVER SERVICES                                                                          ,Staff Payment,BA0000279176,5.00,
BIS,The Insolvency Service,02/09/2014,Travel and Subsistence,PEOPLE & CAPABILITY                                                                                 ,Staff Payment,BA0000279176,49.90,
BIS,The Insolvency Service,02/09/2014,Travel and Subsistence,PEOPLE & CAPABILITY                                                                                 ,Staff Payment,BA0000279176,20.00,
BIS,The Insolvency Service,02/09/2014,Travel and Subsistence,PEOPLE & CAPABILITY                                                                                 ,Staff Payment,BA0000279176,5.00,
BIS,The Insolvency Service,02/09/2014,Travel and Subsistence,PEOPLE & CAPABILITY                                                                                 ,Staff Payment,BA0000279176,21.19,
BIS,The Insolvency Service,02/09/2014,Travel and Subsistence,PEOPLE & CAPABILITY                                                                                 ,Staff Payment,BA0000279176,26.45,
BIS,The Insolvency Service,02/09/2014,Insolvency Case Related Costs,INVESTIGATIONS & ENFORCEMENT                                                                        ,Staff Payment,BA0000279176,7.00,
BIS,The Insolvency Service,02/09/2014,Insolvency Case Related Costs,INVESTIGATIONS & ENFORCEMENT                                                                        ,Staff Payment,BA0000279176,7.00,
BIS,The Insolvency Service,02/09/2014,Employee Related Costs,PEOPLE & CAPABILITY                                                                                 ,Staff Payment,BA0000279176,190.00,
BIS,The Insolvency Service,02/09/2014,Telecoms,BUSINESS SERVICES DIRECTORATE                                                                       ,SYNTEC LTD                                                  ,BA0000279167,373.35,810309963
BIS,The Insolvency Service,04/09/2014,Accommodation,BUSINESS SERVICES DIRECTORATE                                                                       ,ARCHIVE 2000 UK LTD,BA0000279270,"1,392.44",425421969
BIS,The Insolvency Service,04/09/2014,Computer and IT Systems,INFORMATION TECHNOLOGY                                                                              ,ATOS IT SERVICES UK LTD,BA0000279268,"2,884.80",
BIS,The Insolvency Service,04/09/2014,Agency Workers,FINANCE AND COMMERCIAL                                                                              ,BADENOCH & CLARK,BA0000279229,"3,866.64",232347975
BIS,The Insolvency Service,04/09/2014,Agency Workers,INFORMATION TECHNOLOGY                                                                              ,CAPITA RESOURCING LTD,BA0000279218,"2,072.52",618184140
BIS,The Insolvency Service,04/09/2014,Accommodation,ESTATES,CARILLION SERVICES,BA0000279224,"34,872.50",894545868
BIS,The Insolvency Service,04/09/2014,Accommodation,ESTATES,CARILLION SERVICES,BA0000279224,"5,660.39",894545868
BIS,The Insolvency Service,04/09/2014,Insolvency Case Related Costs,INVESTIGATIONS & ENFORCEMENT                                                                        ,COMPANIES HOUSE,BA0000279235,13.00,GD255
BIS,The Insolvency Service,04/09/2014,Insolvency Case Related Costs,INVESTIGATIONS & ENFORCEMENT                                                                        ,COMPANIES HOUSE,BA0000279236,363.00,GD255
BIS,The Insolvency Service,04/09/2014,Insolvency Case Related Costs,INVESTIGATIONS & ENFORCEMENT                                                                        ,COMPANIES HOUSE,BA0000279237,771.00,GD255
BIS,The Insolvency Service,04/09/2014,Insolvency Case Related Costs,INVESTIGATIONS & ENFORCEMENT                                                                        ,COMPANIES HOUSE,BA0000279238,667.00,GD255
BIS,The Insolvency Service,04/09/2014,Insolvency Case Related Costs,OFFICIAL RECEIVER SERVICES                                                                          ,COMPANIES HOUSE,BA0000279241,29.00,GD255
BIS,The Insolvency Service,04/09/2014,Insolvency Case Related Costs,OFFICIAL RECEIVER SERVICES                                                                          ,COMPANIES HOUSE,BA0000279262,58.00,GD255
BIS,The Insolvency Service,04/09/2014,Computer and IT Systems,INFORMATION TECHNOLOGY                                                                              ,DAISY DATA CENTRE SOLUTIONS LIMITED,BA0000279228,"32,097.85",156929175
BIS,The Insolvency Service,04/09/2014,Accommodation,ESTATES,DEPARTMENT FOR WORK & PENSIONS,BA0000279222,"6,174.85",888815554
BIS,The Insolvency Service,04/09/2014,Accommodation,ESTATES,DEPARTMENT FOR WORK & PENSIONS,BA0000279222,"1,979.41",888815554
BIS,The Insolvency Service,04/09/2014,Accommodation,ESTATES,DEPARTMENT FOR WORK & PENSIONS,BA0000279222,37.27,888815554
BIS,The Insolvency Service,04/09/2014,Postage,INFORMATION TECHNOLOGY                                                                              ,DX NETWORK SERVICES LTD,BA0000279230,210.67,849741385
BIS,The Insolvency Service,04/09/2014,Postage,INFORMATION TECHNOLOGY                                                                              ,DX NETWORK SERVICES LTD,BA0000279230,224.46,849741385
BIS,The Insolvency Service,04/09/2014,Postage,OFFICIAL RECEIVER SERVICES                                                                          ,DX NETWORK SERVICES LTD,BA0000279230,73.29,849741385
BIS,The Insolvency Service,04/09/2014,Postage,OFFICIAL RECEIVER SERVICES                                                                          ,DX NETWORK SERVICES LTD,BA0000279230,94.12,849741385
BIS,The Insolvency Service,04/09/2014,Postage,OFFICIAL RECEIVER SERVICES                                                                          ,DX NETWORK SERVICES LTD,BA0000279230,136.06,849741385
BIS,The Insolvency Service,04/09/2014,Postage,OFFICIAL RECEIVER SERVICES                                                                          ,DX NETWORK SERVICES LTD,BA0000279230,139.47,849741385
BIS,The Insolvency Service,04/09/2014,Postage,OFFICIAL RECEIVER SERVICES                                                                          ,DX NETWORK SERVICES LTD,BA0000279230,141.51,849741385
BIS,The Insolvency Service,04/09/2014,Postage,OFFICIAL RECEIVER SERVICES                                                                          ,DX NETWORK SERVICES LTD,BA0000279230,165.82,849741385
BIS,The Insolvency Service,04/09/2014,Postage,OFFICIAL RECEIVER SERVICES                                                                          ,DX NETWORK SERVICES LTD,BA0000279230,168.28,849741385
BIS,The Insolvency Service,04/09/2014,Postage,OFFICIAL RECEIVER SERVICES                                                                          ,DX NETWORK SERVICES LTD,BA0000279230,185.40,849741385
BIS,The Insolvency Service,04/09/2014,Postage,OFFICIAL RECEIVER SERVICES                                                                          ,DX NETWORK SERVICES LTD,BA0000279230,210.14,849741385
BIS,The Insolvency Service,04/09/2014,Postage,OFFICIAL RECEIVER SERVICES                                                                          ,DX NETWORK SERVICES LTD,BA0000279230,218.35,849741385
BIS,The Insolvency Service,04/09/2014,Postage,OFFICIAL RECEIVER SERVICES                                                                          ,DX NETWORK SERVICES LTD,BA0000279230,219.91,849741385
BIS,The Insolvency Service,04/09/2014,Postage,OFFICIAL RECEIVER SERVICES                                                                          ,DX NETWORK SERVICES LTD,BA0000279230,233.02,849741385
BIS,The Insolvency Service,04/09/2014,Postage,OFFICIAL RECEIVER SERVICES                                                                          ,DX NETWORK SERVICES LTD,BA0000279230,242.73,849741385
BIS,The Insolvency Service,04/09/2014,Postage,OFFICIAL RECEIVER SERVICES                                                                          ,DX NETWORK SERVICES LTD,BA0000279230,248.13,849741385
BIS,The Insolvency Service,04/09/2014,Postage,OFFICIAL RECEIVER SERVICES                                                                          ,DX NETWORK SERVICES LTD,BA0000279230,254.53,849741385
BIS,The Insolvency Service,04/09/2014,Postage,OFFICIAL RECEIVER SERVICES                                                                          ,DX NETWORK SERVICES LTD,BA0000279230,271.51,849741385
BIS,The Insolvency Service,04/09/2014,Postage,OFFICIAL RECEIVER SERVICES                                                                          ,DX NETWORK SERVICES LTD,BA0000279230,280.39,849741385
BIS,The Insolvency Service,04/09/2014,Postage,OFFICIAL RECEIVER SERVICES                                                                          ,DX NETWORK SERVICES LTD,BA0000279230,283.91,849741385
BIS,The Insolvency Service,04/09/2014,Postage,OFFICIAL RECEIVER SERVICES                                                                          ,DX NETWORK SERVICES LTD,BA0000279230,321.90,849741385
BIS,The Insolvency Service,04/09/2014,Postage,OFFICIAL RECEIVER SERVICES                                                                          ,DX NETWORK SERVICES LTD,BA0000279230,449.03,849741385
BIS,The Insolvency Service,04/09/2014,Postage,OFFICIAL RECEIVER SERVICES                                                                          ,DX NETWORK SERVICES LTD,BA0000279230,449.74,849741385
BIS,The Insolvency Service,04/09/2014,Postage,OFFICIAL RECEIVER SERVICES                                                                          ,DX NETWORK SERVICES LTD,BA0000279230,591.57,849741385
BIS,The Insolvency Service,04/09/2014,Postage,OFFICIAL RECEIVER SERVICES                                                                          ,DX NETWORK SERVICES LTD,BA0000279230,780.86,849741385
BIS,The Insolvency Service,04/09/2014,Accommodation,ESTATES,E.ON ENERGY,BA0000279264,427.27,559097889
BIS,The Insolvency Service,04/09/2014,Training Costs,PEOPLE & CAPABILITY                                                                                 ,EAST OF ENGLAND AMBULANCE NHS TRUST (THAMES MANAGEMENT),BA0000279253,379.00,654919501
BIS,The Insolvency Service,04/09/2014,Training Costs,PEOPLE & CAPABILITY                                                                                 ,EAST OF ENGLAND AMBULANCE NHS TRUST (THAMES MANAGEMENT),BA0000279254,379.00,654919501
BIS,The Insolvency Service,04/09/2014,Training Costs,PEOPLE & CAPABILITY                                                                                 ,EAST OF ENGLAND AMBULANCE NHS TRUST (THAMES MANAGEMENT),BA0000279255,379.00,654919501
BIS,The Insolvency Service,04/09/2014,Training Costs,PEOPLE & CAPABILITY                                                                                 ,EAST OF ENGLAND AMBULANCE NHS TRUST (THAMES MANAGEMENT),BA0000279256,379.00,654919501
BIS,The Insolvency Service,04/09/2014,Training Costs,PEOPLE & CAPABILITY                                                                                 ,EAST OF ENGLAND AMBULANCE NHS TRUST (THAMES MANAGEMENT),BA0000279257,379.00,654919501
BIS,The Insolvency Service,04/09/2014,Training Costs,PEOPLE & CAPABILITY                                                                                 ,EAST OF ENGLAND AMBULANCE NHS TRUST (THAMES MANAGEMENT),BA0000279258,379.00,654919501
BIS,The Insolvency Service,04/09/2014,Training Costs,PEOPLE & CAPABILITY                                                                                 ,EAST OF ENGLAND AMBULANCE NHS TRUST (THAMES MANAGEMENT),BA0000279259,379.00,654919501
BIS,The Insolvency Service,04/09/2014,Insolvency Case Related Costs,OFFICIAL RECEIVER SERVICES                                                                          ,FRANK G. BOWEN LTD,BA0000279242,222.00,238504366
BIS,The Insolvency Service,04/09/2014,Insolvency Case Related Costs,OFFICIAL RECEIVER SERVICES                                                                          ,FRANK G. BOWEN LTD,BA0000279243,75.60,238504366
BIS,The Insolvency Service,04/09/2014,Insolvency Case Related Costs,OFFICIAL RECEIVER SERVICES                                                                          ,FRANK G. BOWEN LTD,BA0000279244,75.60,238504366
BIS,The Insolvency Service,04/09/2014,Insolvency Case Related Costs,OFFICIAL RECEIVER SERVICES                                                                          ,FRANK G. BOWEN LTD,BA0000279245,75.60,238504366
BIS,The Insolvency Service,04/09/2014,Insolvency Case Related Costs,OFFICIAL RECEIVER SERVICES                                                                          ,FRANK G. BOWEN LTD,BA0000279246,75.60,238504366
BIS,The Insolvency Service,04/09/2014,Insolvency Case Related Costs,OFFICIAL RECEIVER SERVICES                                                                          ,FRANK G. BOWEN LTD,BA0000279247,75.60,238504366
BIS,The Insolvency Service,04/09/2014,Investigation and Enforcement Costs,INVESTIGATIONS & ENFORCEMENT                                                                        ,GRANT THORNTON,BA0000279225,"15,237.50",835586102
BIS,The Insolvency Service,04/09/2014,Employee Related Costs,PEOPLE & CAPABILITY                                                                                 ,HEALTH MANAGEMENT LTD,BA0000279267,"1,437.30",792250621
BIS,The Insolvency Service,04/09/2014,Telecoms,OFFICIAL RECEIVER SERVICES                                                                          ,KCOM GROUP PLC,BA0000279261,117.03,647235137
BIS,The Insolvency Service,04/09/2014,Accounting and Banking,FINANCE AND COMMERCIAL,KDS UK LTD,BA0000279269,"2,786.40",776463881
BIS,The Insolvency Service,04/09/2014,Department for Business Innovation and Skills,FINANCE AND COMMERCIAL                                                                              ,MYCSP LTD,BA0000279240,539.17,
BIS,The Insolvency Service,04/09/2014,Insolvency Case Related Costs,OFFICIAL RECEIVER SERVICES                                                                          ,PARCELFORCE WORLDWIDE,BA0000279239,568.12,243170002
BIS,The Insolvency Service,04/09/2014,Employee Related Costs,PEOPLE & CAPABILITY                                                                                 ,RIGHT MANAGEMENT WORKPLACE WELLNESS                         ,BA0000279266,661.21,
BIS,The Insolvency Service,04/09/2014,Postage,FINANCE AND COMMERCIAL                                                                              ,ROYAL MAIL GROUP LTD,BA0000279252,44.11,243170002
BIS,The Insolvency Service,04/09/2014,Postage,OFFICIAL RECEIVER SERVICES                                                                          ,ROYAL MAIL GROUP LTD,BA0000279233,91.67,243170002
BIS,The Insolvency Service,04/09/2014,Postage,OFFICIAL RECEIVER SERVICES                                                                          ,ROYAL MAIL GROUP LTD,BA0000279265,83.33,243170002
BIS,The Insolvency Service,04/09/2014,Insolvency Case Related Costs,OFFICIAL RECEIVER SERVICES                                                                          ,SIRS (EUROPE) LTD,BA0000279227,"6,780.00",990834974
BIS,The Insolvency Service,04/09/2014,Investigation and Enforcement Costs,INVESTIGATIONS & ENFORCEMENT                                                                        ,SIRS (EUROPE) LTD,BA0000279227,520.00,990834974
BIS,The Insolvency Service,04/09/2014,Investigation and Enforcement Costs,INVESTIGATIONS & ENFORCEMENT                                                                        ,SIRS (EUROPE) LTD,BA0000279227,"1,775.00",990834974
BIS,The Insolvency Service,04/09/2014,Travel and Subsistence,CUSTOMER AND COMMUNICATIONS                                                                         ,Staff Payment,BA0000279232,41.70,
BIS,The Insolvency Service,04/09/2014,Travel and Subsistence,FINANCE AND COMMERCIAL,Staff Payment,BA0000279232,15.30,
BIS,The Insolvency Service,04/09/2014,Travel and Subsistence,OFFICIAL RECEIVER SERVICES                                                                          ,Staff Payment,BA0000279231,20.00,
BIS,The Insolvency Service,04/09/2014,Travel and Subsistence,PEOPLE & CAPABILITY                                                                                 ,Staff Payment,BA0000279231,55.00,
BIS,The Insolvency Service,04/09/2014,Travel and Subsistence,CUSTOMER AND COMMUNICATIONS                                                                         ,Staff Payment,BA0000279232,5.60,
BIS,The Insolvency Service,04/09/2014,Travel and Subsistence,CUSTOMER AND COMMUNICATIONS                                                                         ,Staff Payment,BA0000279232,23.54,
BIS,The Insolvency Service,04/09/2014,Travel and Subsistence,PEOPLE & CAPABILITY                                                                                 ,Staff Payment,BA0000279231,7.42,
BIS,The Insolvency Service,04/09/2014,Travel and Subsistence,PEOPLE & CAPABILITY                                                                                 ,Staff Payment,BA0000279231,9.74,
BIS,The Insolvency Service,04/09/2014,Accommodation,ESTATES,Staff Payment,BA0000279231,10.50,
BIS,The Insolvency Service,04/09/2014,Travel and Subsistence,OFFICIAL RECEIVER SERVICES                                                                          ,Staff Payment,BA0000279231,198.99,
BIS,The Insolvency Service,04/09/2014,Travel and Subsistence,BUSINESS SERVICES DIRECTORATE                                                                       ,Staff Payment,BA0000279231,9.40,
BIS,The Insolvency Service,04/09/2014,Travel and Subsistence,BUSINESS SERVICES DIRECTORATE                                                                       ,Staff Payment,BA0000279231,3.00,
BIS,The Insolvency Service,04/09/2014,Travel and Subsistence,FINANCE AND COMMERCIAL                                                                              ,Staff Payment,BA0000279231,10.60,
BIS,The Insolvency Service,04/09/2014,Travel and Subsistence,FINANCE AND COMMERCIAL                                                                              ,Staff Payment,BA0000279231,12.65,
BIS,The Insolvency Service,04/09/2014,Travel and Subsistence,FINANCE AND COMMERCIAL                                                                              ,Staff Payment,BA0000279231,4.90,
BIS,The Insolvency Service,04/09/2014,Travel and Subsistence,INVESTIGATIONS & ENFORCEMENT                                                                        ,Staff Payment,BA0000279231,19.60,
BIS,The Insolvency Service,04/09/2014,Travel and Subsistence,INVESTIGATIONS & ENFORCEMENT                                                                        ,Staff Payment,BA0000279231,8.00,
BIS,The Insolvency Service,04/09/2014,Travel and Subsistence,INVESTIGATIONS & ENFORCEMENT                                                                        ,Staff Payment,BA0000279231,4.40,
BIS,The Insolvency Service,04/09/2014,Travel and Subsistence,INVESTIGATIONS & ENFORCEMENT                                                                        ,Staff Payment,BA0000279231,8.90,
BIS,The Insolvency Service,04/09/2014,Travel and Subsistence,INVESTIGATIONS & ENFORCEMENT                                                                        ,Staff Payment,BA0000279231,21.40,
BIS,The Insolvency Service,04/09/2014,Travel and Subsistence,INVESTIGATIONS & ENFORCEMENT                                                                        ,Staff Payment,BA0000279231,8.80,
BIS,The Insolvency Service,04/09/2014,Travel and Subsistence,OFFICIAL RECEIVER SERVICES                                                                          ,Staff Payment,BA0000279232,6.90,
BIS,The Insolvency Service,04/09/2014,Travel and Subsistence,OFFICIAL RECEIVER SERVICES                                                                          ,Staff Payment,BA0000279232,16.60,
BIS,The Insolvency Service,04/09/2014,Travel and Subsistence,OFFICIAL RECEIVER SERVICES                                                                          ,Staff Payment,BA0000279232,2.40,
BIS,The Insolvency Service,04/09/2014,Travel and Subsistence,OFFICIAL RECEIVER SERVICES                                                                          ,Staff Payment,BA0000279231,3.00,
BIS,The Insolvency Service,04/09/2014,Travel and Subsistence,OFFICIAL RECEIVER SERVICES                                                                          ,Staff Payment,BA0000279231,7.70,
BIS,The Insolvency Service,04/09/2014,Travel and Subsistence,OFFICIAL RECEIVER SERVICES                                                                          ,Staff Payment,BA0000279231,2.50,
BIS,The Insolvency Service,04/09/2014,Travel and Subsistence,OFFICIAL RECEIVER SERVICES                                                                          ,Staff Payment,BA0000279231,3.00,
BIS,The Insolvency Service,04/09/2014,Travel and Subsistence,OFFICIAL RECEIVER SERVICES                                                                          ,Staff Payment,BA0000279231,3.70,
BIS,The Insolvency Service,04/09/2014,Travel and Subsistence,OFFICIAL RECEIVER SERVICES                                                                          ,Staff Payment,BA0000279231,3.70,
BIS,The Insolvency Service,04/09/2014,Travel and Subsistence,OFFICIAL RECEIVER SERVICES                                                                          ,Staff Payment,BA0000279231,6.70,
BIS,The Insolvency Service,04/09/2014,Travel and Subsistence,PEOPLE & CAPABILITY                                                                                 ,Staff Payment,BA0000279231,4.00,
BIS,The Insolvency Service,04/09/2014,Travel and Subsistence,PEOPLE & CAPABILITY                                                                                 ,Staff Payment,BA0000279231,9.20,
BIS,The Insolvency Service,04/09/2014,Travel and Subsistence,BUSINESS SERVICES DIRECTORATE                                                                       ,Staff Payment,BA0000279231,112.00,
BIS,The Insolvency Service,04/09/2014,Travel and Subsistence,BUSINESS SERVICES DIRECTORATE                                                                       ,Staff Payment,BA0000279231,3.90,
BIS,The Insolvency Service,04/09/2014,Travel and Subsistence,BUSINESS SERVICES DIRECTORATE                                                                       ,Staff Payment,BA0000279231,78.30,
BIS,The Insolvency Service,04/09/2014,Travel and Subsistence,BUSINESS SERVICES DIRECTORATE                                                                       ,Staff Payment,BA0000279231,8.00,
BIS,The Insolvency Service,04/09/2014,Travel and Subsistence,FINANCE AND COMMERCIAL,Staff Payment,BA0000279232,16.00,
BIS,The Insolvency Service,04/09/2014,Travel and Subsistence,FINANCE AND COMMERCIAL                                                                              ,Staff Payment,BA0000279231,256.70,
BIS,The Insolvency Service,04/09/2014,Travel and Subsistence,FINANCE AND COMMERCIAL                                                                              ,Staff Payment,BA0000279231,139.50,
BIS,The Insolvency Service,04/09/2014,Travel and Subsistence,INFORMATION TECHNOLOGY                                                                              ,Staff Payment,BA0000279232,56.70,
BIS,The Insolvency Service,04/09/2014,Travel and Subsistence,INVESTIGATIONS & ENFORCEMENT                                                                        ,Staff Payment,BA0000279231,47.70,
BIS,The Insolvency Service,04/09/2014,Travel and Subsistence,INVESTIGATIONS & ENFORCEMENT                                                                        ,Staff Payment,BA0000279232,100.80,
BIS,The Insolvency Service,04/09/2014,Travel and Subsistence,INVESTIGATIONS & ENFORCEMENT                                                                        ,Staff Payment,BA0000279232,153.25,
BIS,The Insolvency Service,04/09/2014,Travel and Subsistence,INVESTIGATIONS & ENFORCEMENT                                                                        ,Staff Payment,BA0000279232,36.00,
BIS,The Insolvency Service,04/09/2014,Travel and Subsistence,INVESTIGATIONS & ENFORCEMENT                                                                        ,Staff Payment,BA0000279231,22.50,
BIS,The Insolvency Service,04/09/2014,Travel and Subsistence,INVESTIGATIONS & ENFORCEMENT                                                                        ,Staff Payment,BA0000279231,4.60,
BIS,The Insolvency Service,04/09/2014,Travel and Subsistence,INVESTIGATIONS & ENFORCEMENT                                                                        ,Staff Payment,BA0000279231,18.90,
BIS,The Insolvency Service,04/09/2014,Travel and Subsistence,INVESTIGATIONS & ENFORCEMENT                                                                        ,Staff Payment,BA0000279231,54.90,
BIS,The Insolvency Service,04/09/2014,Travel and Subsistence,INVESTIGATIONS & ENFORCEMENT                                                                        ,Staff Payment,BA0000279231,5.58,
BIS,The Insolvency Service,04/09/2014,Travel and Subsistence,INVESTIGATIONS & ENFORCEMENT                                                                        ,Staff Payment,BA0000279231,11.25,
BIS,The Insolvency Service,04/09/2014,Travel and Subsistence,INVESTIGATIONS & ENFORCEMENT                                                                        ,Staff Payment,BA0000279231,15.00,
BIS,The Insolvency Service,04/09/2014,Travel and Subsistence,INVESTIGATIONS & ENFORCEMENT                                                                        ,Staff Payment,BA0000279231,10.00,
BIS,The Insolvency Service,04/09/2014,Travel and Subsistence,INVESTIGATIONS & ENFORCEMENT                                                                        ,Staff Payment,BA0000279231,50.40,
BIS,The Insolvency Service,04/09/2014,Travel and Subsistence,INVESTIGATIONS & ENFORCEMENT                                                                        ,Staff Payment,BA0000279231,36.00,
BIS,The Insolvency Service,04/09/2014,Travel and Subsistence,INVESTIGATIONS & ENFORCEMENT                                                                        ,Staff Payment,BA0000279231,51.75,
BIS,The Insolvency Service,04/09/2014,Travel and Subsistence,INVESTIGATIONS & ENFORCEMENT                                                                        ,Staff Payment,BA0000279231,9.20,
BIS,The Insolvency Service,04/09/2014,Travel and Subsistence,INVESTIGATIONS & ENFORCEMENT                                                                        ,Staff Payment,BA0000279231,30.60,
BIS,The Insolvency Service,04/09/2014,Travel and Subsistence,OFFICIAL RECEIVER SERVICES                                                                          ,Staff Payment,BA0000279232,12.00,
BIS,The Insolvency Service,04/09/2014,Travel and Subsistence,OFFICIAL RECEIVER SERVICES                                                                          ,Staff Payment,BA0000279232,2.00,
BIS,The Insolvency Service,04/09/2014,Travel and Subsistence,OFFICIAL RECEIVER SERVICES                                                                          ,Staff Payment,BA0000279232,54.45,
BIS,The Insolvency Service,04/09/2014,Travel and Subsistence,OFFICIAL RECEIVER SERVICES                                                                          ,Staff Payment,BA0000279232,2.00,
BIS,The Insolvency Service,04/09/2014,Travel and Subsistence,OFFICIAL RECEIVER SERVICES                                                                          ,Staff Payment,BA0000279232,16.65,
BIS,The Insolvency Service,04/09/2014,Travel and Subsistence,OFFICIAL RECEIVER SERVICES                                                                          ,Staff Payment,BA0000279232,31.50,
BIS,The Insolvency Service,04/09/2014,Travel and Subsistence,OFFICIAL RECEIVER SERVICES                                                                          ,Staff Payment,BA0000279232,3.00,
BIS,The Insolvency Service,04/09/2014,Travel and Subsistence,OFFICIAL RECEIVER SERVICES                                                                          ,Staff Payment,BA0000279232,62.00,
BIS,The Insolvency Service,04/09/2014,Travel and Subsistence,OFFICIAL RECEIVER SERVICES                                                                          ,Staff Payment,BA0000279232,1.60,
BIS,The Insolvency Service,04/09/2014,Travel and Subsistence,OFFICIAL RECEIVER SERVICES                                                                          ,Staff Payment,BA0000279232,46.80,
BIS,The Insolvency Service,04/09/2014,Travel and Subsistence,OFFICIAL RECEIVER SERVICES                                                                          ,Staff Payment,BA0000279231,5.00,
BIS,The Insolvency Service,04/09/2014,Travel and Subsistence,OFFICIAL RECEIVER SERVICES                                                                          ,Staff Payment,BA0000279231,14.40,
BIS,The Insolvency Service,04/09/2014,Travel and Subsistence,OFFICIAL RECEIVER SERVICES                                                                          ,Staff Payment,BA0000279231,10.00,
BIS,The Insolvency Service,04/09/2014,Travel and Subsistence,OFFICIAL RECEIVER SERVICES                                                                          ,Staff Payment,BA0000279231,15.30,
BIS,The Insolvency Service,04/09/2014,Travel and Subsistence,OFFICIAL RECEIVER SERVICES                                                                          ,Staff Payment,BA0000279231,3.00,
BIS,The Insolvency Service,04/09/2014,Travel and Subsistence,OFFICIAL RECEIVER SERVICES                                                                          ,Staff Payment,BA0000279231,85.05,
BIS,The Insolvency Service,04/09/2014,Travel and Subsistence,OFFICIAL RECEIVER SERVICES                                                                          ,Staff Payment,BA0000279231,205.65,
BIS,The Insolvency Service,04/09/2014,Travel and Subsistence,OFFICIAL RECEIVER SERVICES                                                                          ,Staff Payment,BA0000279231,4.05,
BIS,The Insolvency Service,04/09/2014,Travel and Subsistence,OFFICIAL RECEIVER SERVICES                                                                          ,Staff Payment,BA0000279231,5.40,
BIS,The Insolvency Service,04/09/2014,Travel and Subsistence,OFFICIAL RECEIVER SERVICES                                                                          ,Staff Payment,BA0000279231,3.70,
BIS,The Insolvency Service,04/09/2014,Travel and Subsistence,OFFICIAL RECEIVER SERVICES                                                                          ,Staff Payment,BA0000279231,15.30,
BIS,The Insolvency Service,04/09/2014,Travel and Subsistence,OFFICIAL RECEIVER SERVICES                                                                          ,Staff Payment,BA0000279231,1.50,
BIS,The Insolvency Service,04/09/2014,Travel and Subsistence,OFFICIAL RECEIVER SERVICES                                                                          ,Staff Payment,BA0000279231,38.70,
BIS,The Insolvency Service,04/09/2014,Travel and Subsistence,OFFICIAL RECEIVER SERVICES                                                                          ,Staff Payment,BA0000279231,58.05,
BIS,The Insolvency Service,04/09/2014,Travel and Subsistence,OFFICIAL RECEIVER SERVICES                                                                          ,Staff Payment,BA0000279231,1.60,
BIS,The Insolvency Service,04/09/2014,Travel and Subsistence,OFFICIAL RECEIVER SERVICES                                                                          ,Staff Payment,BA0000279231,30.15,
BIS,The Insolvency Service,04/09/2014,Travel and Subsistence,OFFICIAL RECEIVER SERVICES                                                                          ,Staff Payment,BA0000279231,66.20,
BIS,The Insolvency Service,04/09/2014,Travel and Subsistence,OFFICIAL RECEIVER SERVICES                                                                          ,Staff Payment,BA0000279231,16.20,
BIS,The Insolvency Service,04/09/2014,Travel and Subsistence,OFFICIAL RECEIVER SERVICES                                                                          ,Staff Payment,BA0000279231,31.50,
BIS,The Insolvency Service,04/09/2014,Travel and Subsistence,OFFICIAL RECEIVER SERVICES                                                                          ,Staff Payment,BA0000279231,44.00,
BIS,The Insolvency Service,04/09/2014,Travel and Subsistence,OFFICIAL RECEIVER SERVICES                                                                          ,Staff Payment,BA0000279231,63.90,
BIS,The Insolvency Service,04/09/2014,Travel and Subsistence,OFFICIAL RECEIVER SERVICES                                                                          ,Staff Payment,BA0000279231,63.00,
BIS,The Insolvency Service,04/09/2014,Travel and Subsistence,OFFICIAL RECEIVER SERVICES                                                                          ,Staff Payment,BA0000279231,14.85,
BIS,The Insolvency Service,04/09/2014,Travel and Subsistence,OFFICIAL RECEIVER SERVICES                                                                          ,Staff Payment,BA0000279231,42.10,
BIS,The Insolvency Service,04/09/2014,Travel and Subsistence,OFFICIAL RECEIVER SERVICES                                                                          ,Staff Payment,BA0000279231,291.70,
BIS,The Insolvency Service,04/09/2014,Travel and Subsistence,OFFICIAL RECEIVER SERVICES                                                                          ,Staff Payment,BA0000279231,8.00,
BIS,The Insolvency Service,04/09/2014,Travel and Subsistence,OFFICIAL RECEIVER SERVICES                                                                          ,Staff Payment,BA0000279231,139.95,
BIS,The Insolvency Service,04/09/2014,Travel and Subsistence,PEOPLE & CAPABILITY                                                                                 ,Staff Payment,BA0000279231,5.80,
BIS,The Insolvency Service,04/09/2014,Travel and Subsistence,BUSINESS SERVICES DIRECTORATE                                                                       ,Staff Payment,BA0000279232,22.00,
BIS,The Insolvency Service,04/09/2014,Travel and Subsistence,BUSINESS SERVICES DIRECTORATE                                                                       ,Staff Payment,BA0000279231,4.50,
BIS,The Insolvency Service,04/09/2014,Travel and Subsistence,BUSINESS SERVICES DIRECTORATE                                                                       ,Staff Payment,BA0000279231,13.80,
BIS,The Insolvency Service,04/09/2014,Travel and Subsistence,FINANCE AND COMMERCIAL                                                                              ,Staff Payment,BA0000279231,24.10,
BIS,The Insolvency Service,04/09/2014,Travel and Subsistence,OFFICIAL RECEIVER SERVICES                                                                          ,Staff Payment,BA0000279231,11.40,
BIS,The Insolvency Service,04/09/2014,Travel and Subsistence,BUSINESS SERVICES DIRECTORATE                                                                       ,Staff Payment,BA0000279232,28.50,
BIS,The Insolvency Service,04/09/2014,Travel and Subsistence,BUSINESS SERVICES DIRECTORATE                                                                       ,Staff Payment,BA0000279231,81.58,
BIS,The Insolvency Service,04/09/2014,Travel and Subsistence,BUSINESS SERVICES DIRECTORATE                                                                       ,Staff Payment,BA0000279231,3.83,
BIS,The Insolvency Service,04/09/2014,Travel and Subsistence,BUSINESS SERVICES DIRECTORATE                                                                       ,Staff Payment,BA0000279231,110.75,
BIS,The Insolvency Service,04/09/2014,Travel and Subsistence,BUSINESS SERVICES DIRECTORATE                                                                       ,Staff Payment,BA0000279231,62.17,
BIS,The Insolvency Service,04/09/2014,Travel and Subsistence,BUSINESS SERVICES DIRECTORATE                                                                       ,Staff Payment,BA0000279231,5.00,
BIS,The Insolvency Service,04/09/2014,Travel and Subsistence,BUSINESS SERVICES DIRECTORATE                                                                       ,Staff Payment,BA0000279231,7.50,
BIS,The Insolvency Service,04/09/2014,Travel and Subsistence,FINANCE AND COMMERCIAL,Staff Payment,BA0000279232,5.00,
BIS,The Insolvency Service,04/09/2014,Travel and Subsistence,FINANCE AND COMMERCIAL                                                                              ,Staff Payment,BA0000279231,19.95,
BIS,The Insolvency Service,04/09/2014,Travel and Subsistence,FINANCE AND COMMERCIAL                                                                              ,Staff Payment,BA0000279231,24.87,
BIS,The Insolvency Service,04/09/2014,Travel and Subsistence,FINANCE AND COMMERCIAL                                                                              ,Staff Payment,BA0000279231,9.30,
BIS,The Insolvency Service,04/09/2014,Travel and Subsistence,FINANCE AND COMMERCIAL                                                                              ,Staff Payment,BA0000279231,3.00,
BIS,The Insolvency Service,04/09/2014,Travel and Subsistence,FINANCE AND COMMERCIAL                                                                              ,Staff Payment,BA0000279231,5.00,
BIS,The Insolvency Service,04/09/2014,Travel and Subsistence,INVESTIGATIONS & ENFORCEMENT                                                                        ,Staff Payment,BA0000279231,45.04,
BIS,The Insolvency Service,04/09/2014,Travel and Subsistence,INVESTIGATIONS & ENFORCEMENT                                                                        ,Staff Payment,BA0000279232,24.83,
BIS,The Insolvency Service,04/09/2014,Travel and Subsistence,INVESTIGATIONS & ENFORCEMENT                                                                        ,Staff Payment,BA0000279231,14.75,
BIS,The Insolvency Service,04/09/2014,Travel and Subsistence,INVESTIGATIONS & ENFORCEMENT                                                                        ,Staff Payment,BA0000279231,9.30,
BIS,The Insolvency Service,04/09/2014,Travel and Subsistence,INVESTIGATIONS & ENFORCEMENT                                                                        ,Staff Payment,BA0000279231,4.14,
BIS,The Insolvency Service,04/09/2014,Travel and Subsistence,INVESTIGATIONS & ENFORCEMENT                                                                        ,Staff Payment,BA0000279231,3.60,
BIS,The Insolvency Service,04/09/2014,Travel and Subsistence,INVESTIGATIONS & ENFORCEMENT                                                                        ,Staff Payment,BA0000279231,24.40,
BIS,The Insolvency Service,04/09/2014,Travel and Subsistence,OFFICIAL RECEIVER SERVICES                                                                          ,Staff Payment,BA0000279232,6.79,
BIS,The Insolvency Service,04/09/2014,Travel and Subsistence,OFFICIAL RECEIVER SERVICES                                                                          ,Staff Payment,BA0000279232,25.00,
BIS,The Insolvency Service,04/09/2014,Travel and Subsistence,OFFICIAL RECEIVER SERVICES                                                                          ,Staff Payment,BA0000279231,10.00,
BIS,The Insolvency Service,04/09/2014,Travel and Subsistence,OFFICIAL RECEIVER SERVICES                                                                          ,Staff Payment,BA0000279231,46.31,
BIS,The Insolvency Service,04/09/2014,Travel and Subsistence,OFFICIAL RECEIVER SERVICES                                                                          ,Staff Payment,BA0000279231,5.00,
BIS,The Insolvency Service,04/09/2014,Travel and Subsistence,OFFICIAL RECEIVER SERVICES                                                                          ,Staff Payment,BA0000279231,9.70,
BIS,The Insolvency Service,04/09/2014,Travel and Subsistence,OFFICIAL RECEIVER SERVICES                                                                          ,Staff Payment,BA0000279231,28.73,
BIS,The Insolvency Service,04/09/2014,Travel and Subsistence,OFFICIAL RECEIVER SERVICES                                                                          ,Staff Payment,BA0000279231,5.00,
BIS,The Insolvency Service,04/09/2014,Travel and Subsistence,OFFICIAL RECEIVER SERVICES                                                                          ,Staff Payment,BA0000279231,11.64,
BIS,The Insolvency Service,04/09/2014,Travel and Subsistence,OFFICIAL RECEIVER SERVICES                                                                          ,Staff Payment,BA0000279231,9.25,
BIS,The Insolvency Service,04/09/2014,Travel and Subsistence,OFFICIAL RECEIVER SERVICES                                                                          ,Staff Payment,BA0000279231,75.26,
BIS,The Insolvency Service,04/09/2014,Travel and Subsistence,PEOPLE & CAPABILITY                                                                                 ,Staff Payment,BA0000279231,15.59,
BIS,The Insolvency Service,04/09/2014,Travel and Subsistence,PEOPLE & CAPABILITY                                                                                 ,Staff Payment,BA0000279231,3.20,
BIS,The Insolvency Service,04/09/2014,Insolvency Case Related Costs,INVESTIGATIONS & ENFORCEMENT                                                                        ,Staff Payment,BA0000279231,14.00,
BIS,The Insolvency Service,04/09/2014,Insolvency Case Related Costs,INVESTIGATIONS & ENFORCEMENT                                                                        ,Staff Payment,BA0000279231,9.00,
BIS,The Insolvency Service,04/09/2014,Investigation and Enforcement Costs,INVESTIGATIONS & ENFORCEMENT                                                                        ,Staff Payment,BA0000279231,7.00,
BIS,The Insolvency Service,04/09/2014,Employee Related Costs,PEOPLE & CAPABILITY                                                                                 ,Staff Payment,BA0000279231,90.00,
BIS,The Insolvency Service,04/09/2014,Employee Related Costs,PEOPLE & CAPABILITY                                                                                 ,Staff Payment,BA0000279231,20.00,
BIS,The Insolvency Service,04/09/2014,Office Supplies and Services,OFFICIAL RECEIVER SERVICES                                                                          ,Staff Payment,BA0000279231,5.45,
BIS,The Insolvency Service,04/09/2014,Conferences,INVESTIGATIONS & ENFORCEMENT                                                                        ,THE CONFERENCE NETWORK LTD,BA0000279234,198.00,835653902
BIS,The Insolvency Service,04/09/2014,Insolvency Case Related Costs,OFFICIAL RECEIVER SERVICES                                                                          ,THE SURVEILLANCE GROUP LTD                                  ,BA0000279226,"8,615.28",918530324
BIS,The Insolvency Service,04/09/2014,Investigation and Enforcement Costs,INVESTIGATIONS & ENFORCEMENT                                                                        ,THE SURVEILLANCE GROUP LTD                                  ,BA0000279226,891.40,918530324
BIS,The Insolvency Service,04/09/2014,Postage,FINANCE AND COMMERCIAL                                                                              ,TNT UK LTD,BA0000279248,57.86,354715057
BIS,The Insolvency Service,04/09/2014,Postage,FINANCE AND COMMERCIAL                                                                              ,TNT UK LTD,BA0000279249,64.00,354715057
BIS,The Insolvency Service,04/09/2014,Postage,FINANCE AND COMMERCIAL                                                                              ,TNT UK LTD,BA0000279250,415.62,354715057
BIS,The Insolvency Service,04/09/2014,Postage,FINANCE AND COMMERCIAL                                                                              ,TNT UK LTD,BA0000279251,106.93,354715057
BIS,The Insolvency Service,04/09/2014,Accommodation,ESTATES,VEOLIA ES (UK) LTD,BA0000279260,108.32,530008893
BIS,The Insolvency Service,04/09/2014,Telecoms,OFFICIAL RECEIVER SERVICES                                                                          ,VODAFONE - CABLE & WIRELESS COMMUNICATIONS,BA0000279263,8.60,232303710
BIS,The Insolvency Service,08/09/2014,Computer and IT Systems,BUSINESS SERVICES DIRECTORATE                                                                       ,BADENOCH & CLARK,BA0000279286,"2,640.00",232347975
BIS,The Insolvency Service,08/09/2014,Telecoms,BUSINESS SERVICES DIRECTORATE                                                                       ,BT CONFERENCING SERVICES,BA0000279302,13.60,245719348
BIS,The Insolvency Service,08/09/2014,Telecoms,CUSTOMER AND COMMUNICATIONS                                                                         ,BT CONFERENCING SERVICES,BA0000279302,25.66,245719348
BIS,The Insolvency Service,08/09/2014,Telecoms,FINANCE AND COMMERCIAL                                                                              ,BT CONFERENCING SERVICES,BA0000279302,8.47,245719348
BIS,The Insolvency Service,08/09/2014,Telecoms,FINANCE AND COMMERCIAL                                                                              ,BT CONFERENCING SERVICES,BA0000279302,69.64,245719348
BIS,The Insolvency Service,08/09/2014,Telecoms,FINANCE AND COMMERCIAL                                                                              ,BT CONFERENCING SERVICES,BA0000279302,75.48,245719348
BIS,The Insolvency Service,08/09/2014,Telecoms,INFORMATION TECHNOLOGY                                                                              ,BT CONFERENCING SERVICES,BA0000279302,-296.78,245719348
BIS,The Insolvency Service,08/09/2014,Telecoms,INFORMATION TECHNOLOGY                                                                              ,BT CONFERENCING SERVICES,BA0000279302,2.24,245719348
BIS,The Insolvency Service,08/09/2014,Telecoms,INFORMATION TECHNOLOGY                                                                              ,BT CONFERENCING SERVICES,BA0000279302,244.10,245719348
BIS,The Insolvency Service,08/09/2014,Telecoms,OFFICIAL RECEIVER SERVICES                                                                          ,BT CONFERENCING SERVICES,BA0000279302,2.26,245719348
BIS,The Insolvency Service,08/09/2014,Telecoms,OFFICIAL RECEIVER SERVICES                                                                          ,BT CONFERENCING SERVICES,BA0000279302,2.99,245719348
BIS,The Insolvency Service,08/09/2014,Telecoms,OFFICIAL RECEIVER SERVICES                                                                          ,BT CONFERENCING SERVICES,BA0000279302,9.71,245719348
BIS,The Insolvency Service,08/09/2014,Telecoms,OFFICIAL RECEIVER SERVICES                                                                          ,BT CONFERENCING SERVICES,BA0000279302,15.01,245719348
BIS,The Insolvency Service,08/09/2014,Telecoms,OFFICIAL RECEIVER SERVICES                                                                          ,BT CONFERENCING SERVICES,BA0000279302,25.32,245719348
BIS,The Insolvency Service,08/09/2014,Telecoms,OFFICIAL RECEIVER SERVICES                                                                          ,BT CONFERENCING SERVICES,BA0000279302,29.65,245719348
BIS,The Insolvency Service,08/09/2014,Agency Workers,FINANCE AND COMMERCIAL                                                                              ,CAPITA RESOURCING LTD,BA0000279293,"7,020.00",618184140
BIS,The Insolvency Service,08/09/2014,Accommodation,ESTATES,CBRE Ltd,BA0000279285,"12,483.60",
BIS,The Insolvency Service,08/09/2014,Accommodation,ESTATES,CBRE PROPERTY AND ASSET MANAGEMENT,BA0000279279,"24,708.00",
BIS,The Insolvency Service,08/09/2014,Accommodation,ESTATES,CBRE PROPERTY AND ASSET MANAGEMENT,BA0000279279,"10,093.25",
BIS,The Insolvency Service,08/09/2014,Accommodation,ESTATES,CGM LANDSCAPES (COMPLETE GROUNDS MAINTENANCE LTD),BA0000279300,102.00,943560027
BIS,The Insolvency Service,08/09/2014,Insolvency Case Related Costs,OFFICIAL RECEIVER SERVICES                                                                          ,COMPANIES HOUSE,BA0000279308,16.00,GD255
BIS,The Insolvency Service,08/09/2014,Insolvency Case Related Costs,OFFICIAL RECEIVER SERVICES                                                                          ,COMPANIES HOUSE,BA0000279298,37.00,GD255
BIS,The Insolvency Service,08/09/2014,Insolvency Case Related Costs,OFFICIAL RECEIVER SERVICES                                                                          ,COMPANIES HOUSE,BA0000279298,38.00,GD255
BIS,The Insolvency Service,08/09/2014,Insolvency Case Related Costs,OFFICIAL RECEIVER SERVICES                                                                          ,COMPANIES HOUSE,BA0000279299,13.00,GD255
BIS,The Insolvency Service,08/09/2014,Insolvency Case Related Costs,OFFICIAL RECEIVER SERVICES                                                                          ,COMPANIES HOUSE,BA0000279309,17.00,GD255
BIS,The Insolvency Service,08/09/2014,Insolvency Case Related Costs,OFFICIAL RECEIVER SERVICES                                                                          ,COMPANIES HOUSE,BA0000279310,155.00,GD255
BIS,The Insolvency Service,08/09/2014,Accommodation,FINANCE AND COMMERCIAL                                                                              ,EC HARRIS LLP,BA0000279313,"4,230.00",660476038
BIS,The Insolvency Service,08/09/2014,Accommodation,FINANCE AND COMMERCIAL                                                                              ,EC HARRIS LLP,BA0000279314,"6,750.00",660476038
BIS,The Insolvency Service,08/09/2014,Accommodation,FINANCE AND COMMERCIAL                                                                              ,EC HARRIS LLP,BA0000279315,"4,590.00",660476038
BIS,The Insolvency Service,08/09/2014,Accommodation,FINANCE AND COMMERCIAL                                                                              ,EC HARRIS LLP,BA0000279316,"4,950.00",660476038
BIS,The Insolvency Service,08/09/2014,Accommodation,FINANCE AND COMMERCIAL                                                                              ,EC HARRIS LLP,BA0000279317,"2,520.00",660476038
BIS,The Insolvency Service,08/09/2014,Insolvency Case Related Costs,INVESTIGATIONS & ENFORCEMENT                                                                        ,EXPERIAN QAS LTD,BA0000279305,397.44,887133593
BIS,The Insolvency Service,08/09/2014,Insolvency Case Related Costs,INVESTIGATIONS & ENFORCEMENT                                                                        ,EXPERIAN QAS LTD,BA0000279291,"2,025.66",887133593
BIS,The Insolvency Service,08/09/2014,Accommodation,ESTATES,F&C REIT ASSET MANAGEMENT PLC,BA0000279292,"70,530.00",209938729
BIS,The Insolvency Service,08/09/2014,Accommodation,ESTATES,F&C REIT ASSET MANAGEMENT PLC,BA0000279292,"20,506.32",209938729
BIS,The Insolvency Service,08/09/2014,Investigation and Enforcement Costs,INVESTIGATIONS & ENFORCEMENT                                                                        ,HOWES PERCIVAL,BA0000279289,169.00,119523573
BIS,The Insolvency Service,08/09/2014,Investigation and Enforcement Costs,INVESTIGATIONS & ENFORCEMENT                                                                        ,HOWES PERCIVAL,BA0000279289,"41,763.87",119523573
BIS,The Insolvency Service,08/09/2014,Investigation and Enforcement Costs,INVESTIGATIONS & ENFORCEMENT                                                                        ,HOWES PERCIVAL,BA0000279290,"5,595.20",119523573
BIS,The Insolvency Service,08/09/2014,Insolvency Case Related Costs,OFFICIAL RECEIVER SERVICES                                                                          ,HPI LTD,BA0000279296,20.26,942407139
BIS,The Insolvency Service,08/09/2014,Insolvency Case Related Costs,OFFICIAL RECEIVER SERVICES                                                                          ,HPI LTD,BA0000279304,52.96,942407139
BIS,The Insolvency Service,08/09/2014,Insolvency Case Related Costs,OFFICIAL RECEIVER SERVICES                                                                          ,HPI LTD,BA0000279306,121.18,942407139
BIS,The Insolvency Service,08/09/2014,Insolvency Case Related Costs,OFFICIAL RECEIVER SERVICES                                                                          ,HPI LTD,BA0000279307,115.24,942407139
BIS,The Insolvency Service,08/09/2014,Agency Workers,FINANCE AND COMMERCIAL,HUDSON GLOBAL RESOURCES LTD,BA0000279294,"1,797.89",
BIS,The Insolvency Service,08/09/2014,Computer and IT Systems,INFORMATION TECHNOLOGY                                                                              ,IBM UK LTD,BA0000279277,"5,000.00",107328000
BIS,The Insolvency Service,08/09/2014,Computer and IT Systems,INFORMATION TECHNOLOGY                                                                              ,IBM UK LTD,BA0000279278,"9,188.00",107328000
BIS,The Insolvency Service,08/09/2014,Accommodation,ESTATES,JONES LANG LASALLE (AMAS Ltd),BA0000279280,"13,065.60",244155576
BIS,The Insolvency Service,08/09/2014,Accommodation,ESTATES,JONES LANG LASALLE (AMAS Ltd),BA0000279281,"8,910.00",244155576
BIS,The Insolvency Service,08/09/2014,Agency Workers,CUSTOMER AND COMMUNICATIONS                                                                         ,MICHAEL PAGE INTERNATIONAL RECRUITMENT LTD,BA0000279288,"1,609.86",354259936
BIS,The Insolvency Service,08/09/2014,Investigation and Enforcement Costs,CUSTOMER AND COMMUNICATIONS                                                                         ,PRECISE MEDIA MONITORING LTD AKA ENERGY DATA SERVICES LTD,BA0000279295,718.99,849092202
BIS,The Insolvency Service,08/09/2014,Postage,OFFICIAL RECEIVER SERVICES                                                                          ,ROYAL MAIL GROUP LTD,BA0000279297,29.77,243170002
BIS,The Insolvency Service,08/09/2014,Computer and IT Systems,INFORMATION TECHNOLOGY                                                                              ,SPRING TECHNOLOGY STAFFING,BA0000279275,"1,989.02",
BIS,The Insolvency Service,08/09/2014,Computer and IT Systems,INFORMATION TECHNOLOGY                                                                              ,SPRING TECHNOLOGY STAFFING,BA0000279276,"2,561.33",
BIS,The Insolvency Service,08/09/2014,Travel and Subsistence,FINANCE AND COMMERCIAL                                                                              ,Staff Payment,BA0000279311,304.00,
BIS,The Insolvency Service,08/09/2014,Travel and Subsistence,FINANCE AND COMMERCIAL                                                                              ,Staff Payment,BA0000279311,21.00,
BIS,The Insolvency Service,08/09/2014,Travel and Subsistence,INVESTIGATIONS & ENFORCEMENT                                                                        ,Staff Payment,BA0000279311,28.80,
BIS,The Insolvency Service,08/09/2014,Travel and Subsistence,INVESTIGATIONS & ENFORCEMENT                                                                        ,Staff Payment,BA0000279311,1.50,
BIS,The Insolvency Service,08/09/2014,Travel and Subsistence,OFFICIAL RECEIVER SERVICES                                                                          ,Staff Payment,BA0000279311,43.00,
BIS,The Insolvency Service,08/09/2014,Travel and Subsistence,BUSINESS SERVICES DIRECTORATE                                                                       ,Staff Payment,BA0000279311,20.00,
BIS,The Insolvency Service,08/09/2014,Travel and Subsistence,BUSINESS SERVICES DIRECTORATE                                                                       ,Staff Payment,BA0000279311,127.35,
BIS,The Insolvency Service,08/09/2014,Travel and Subsistence,BUSINESS SERVICES DIRECTORATE                                                                       ,Staff Payment,BA0000279311,1.70,
BIS,The Insolvency Service,08/09/2014,Travel and Subsistence,BUSINESS SERVICES DIRECTORATE                                                                       ,Staff Payment,BA0000279311,224.10,
BIS,The Insolvency Service,08/09/2014,Travel and Subsistence,FINANCE AND COMMERCIAL                                                                              ,Staff Payment,BA0000279311,87.30,
BIS,The Insolvency Service,08/09/2014,Travel and Subsistence,FINANCE AND COMMERCIAL                                                                              ,Staff Payment,BA0000279311,19.90,
BIS,The Insolvency Service,08/09/2014,Travel and Subsistence,FINANCE AND COMMERCIAL                                                                              ,Staff Payment,BA0000279311,73.35,
BIS,The Insolvency Service,08/09/2014,Travel and Subsistence,INVESTIGATIONS & ENFORCEMENT                                                                        ,Staff Payment,BA0000279311,286.20,
BIS,The Insolvency Service,08/09/2014,Travel and Subsistence,INVESTIGATIONS & ENFORCEMENT                                                                        ,Staff Payment,BA0000279311,40.50,
BIS,The Insolvency Service,08/09/2014,Travel and Subsistence,INVESTIGATIONS & ENFORCEMENT                                                                        ,Staff Payment,BA0000279311,2.30,
BIS,The Insolvency Service,08/09/2014,Travel and Subsistence,INVESTIGATIONS & ENFORCEMENT                                                                        ,Staff Payment,BA0000279311,17.50,
BIS,The Insolvency Service,08/09/2014,Travel and Subsistence,INVESTIGATIONS & ENFORCEMENT                                                                        ,Staff Payment,BA0000279311,21.80,
BIS,The Insolvency Service,08/09/2014,Travel and Subsistence,INVESTIGATIONS & ENFORCEMENT                                                                        ,Staff Payment,BA0000279311,1.40,
BIS,The Insolvency Service,08/09/2014,Travel and Subsistence,INVESTIGATIONS & ENFORCEMENT                                                                        ,Staff Payment,BA0000279311,36.40,
BIS,The Insolvency Service,08/09/2014,Travel and Subsistence,INVESTIGATIONS & ENFORCEMENT                                                                        ,Staff Payment,BA0000279311,34.20,
BIS,The Insolvency Service,08/09/2014,Travel and Subsistence,INVESTIGATIONS & ENFORCEMENT                                                                        ,Staff Payment,BA0000279311,5.20,
BIS,The Insolvency Service,08/09/2014,Travel and Subsistence,INVESTIGATIONS & ENFORCEMENT                                                                        ,Staff Payment,BA0000279311,43.65,
BIS,The Insolvency Service,08/09/2014,Travel and Subsistence,INVESTIGATIONS & ENFORCEMENT                                                                        ,Staff Payment,BA0000279311,61.20,
BIS,The Insolvency Service,08/09/2014,Travel and Subsistence,OFFICIAL RECEIVER SERVICES                                                                          ,Staff Payment,BA0000279311,9.05,
BIS,The Insolvency Service,08/09/2014,Travel and Subsistence,OFFICIAL RECEIVER SERVICES                                                                          ,Staff Payment,BA0000279311,9.40,
BIS,The Insolvency Service,08/09/2014,Travel and Subsistence,OFFICIAL RECEIVER SERVICES                                                                          ,Staff Payment,BA0000279311,52.65,
BIS,The Insolvency Service,08/09/2014,Travel and Subsistence,OFFICIAL RECEIVER SERVICES                                                                          ,Staff Payment,BA0000279311,17.10,
BIS,The Insolvency Service,08/09/2014,Travel and Subsistence,OFFICIAL RECEIVER SERVICES                                                                          ,Staff Payment,BA0000279311,76.05,
BIS,The Insolvency Service,08/09/2014,Travel and Subsistence,OFFICIAL RECEIVER SERVICES                                                                          ,Staff Payment,BA0000279311,63.90,
BIS,The Insolvency Service,08/09/2014,Travel and Subsistence,OFFICIAL RECEIVER SERVICES                                                                          ,Staff Payment,BA0000279311,2.70,
BIS,The Insolvency Service,08/09/2014,Travel and Subsistence,PEOPLE & CAPABILITY                                                                                 ,Staff Payment,BA0000279311,5.80,
BIS,The Insolvency Service,08/09/2014,Travel and Subsistence,PEOPLE & CAPABILITY                                                                                 ,Staff Payment,BA0000279311,5.80,
BIS,The Insolvency Service,08/09/2014,Travel and Subsistence,PEOPLE & CAPABILITY                                                                                 ,Staff Payment,BA0000279311,5.80,
BIS,The Insolvency Service,08/09/2014,Travel and Subsistence,INVESTIGATIONS & ENFORCEMENT                                                                        ,Staff Payment,BA0000279311,11.80,
BIS,The Insolvency Service,08/09/2014,Travel and Subsistence,INVESTIGATIONS & ENFORCEMENT                                                                        ,Staff Payment,BA0000279311,14.40,
BIS,The Insolvency Service,08/09/2014,Travel and Subsistence,BUSINESS SERVICES DIRECTORATE                                                                       ,Staff Payment,BA0000279311,24.20,
BIS,The Insolvency Service,08/09/2014,Travel and Subsistence,BUSINESS SERVICES DIRECTORATE                                                                       ,Staff Payment,BA0000279311,5.00,
BIS,The Insolvency Service,08/09/2014,Travel and Subsistence,FINANCE AND COMMERCIAL                                                                              ,Staff Payment,BA0000279311,5.00,
BIS,The Insolvency Service,08/09/2014,Travel and Subsistence,FINANCE AND COMMERCIAL                                                                              ,Staff Payment,BA0000279311,11.59,
BIS,The Insolvency Service,08/09/2014,Travel and Subsistence,FINANCE AND COMMERCIAL                                                                              ,Staff Payment,BA0000279311,5.00,
BIS,The Insolvency Service,08/09/2014,Travel and Subsistence,INVESTIGATIONS & ENFORCEMENT                                                                        ,Staff Payment,BA0000279311,5.00,
BIS,The Insolvency Service,08/09/2014,Travel and Subsistence,INVESTIGATIONS & ENFORCEMENT                                                                        ,Staff Payment,BA0000279311,40.21,
BIS,The Insolvency Service,08/09/2014,Travel and Subsistence,INVESTIGATIONS & ENFORCEMENT                                                                        ,Staff Payment,BA0000279311,13.80,
BIS,The Insolvency Service,08/09/2014,Travel and Subsistence,INVESTIGATIONS & ENFORCEMENT                                                                        ,Staff Payment,BA0000279311,5.00,
BIS,The Insolvency Service,08/09/2014,Travel and Subsistence,INVESTIGATIONS & ENFORCEMENT                                                                        ,Staff Payment,BA0000279311,3.50,
BIS,The Insolvency Service,08/09/2014,Travel and Subsistence,INVESTIGATIONS & ENFORCEMENT                                                                        ,Staff Payment,BA0000279311,5.00,
BIS,The Insolvency Service,08/09/2014,Travel and Subsistence,INVESTIGATIONS & ENFORCEMENT                                                                        ,Staff Payment,BA0000279311,5.00,
BIS,The Insolvency Service,08/09/2014,Travel and Subsistence,INVESTIGATIONS & ENFORCEMENT                                                                        ,Staff Payment,BA0000279311,4.00,
BIS,The Insolvency Service,08/09/2014,Travel and Subsistence,INVESTIGATIONS & ENFORCEMENT                                                                        ,Staff Payment,BA0000279311,5.00,
BIS,The Insolvency Service,08/09/2014,Travel and Subsistence,INVESTIGATIONS & ENFORCEMENT                                                                        ,Staff Payment,BA0000279311,5.00,
BIS,The Insolvency Service,08/09/2014,Travel and Subsistence,INVESTIGATIONS & ENFORCEMENT                                                                        ,Staff Payment,BA0000279311,5.00,
BIS,The Insolvency Service,08/09/2014,Travel and Subsistence,OFFICIAL RECEIVER SERVICES                                                                          ,Staff Payment,BA0000279311,35.00,
BIS,The Insolvency Service,08/09/2014,Travel and Subsistence,OFFICIAL RECEIVER SERVICES                                                                          ,Staff Payment,BA0000279311,5.00,
BIS,The Insolvency Service,08/09/2014,Travel and Subsistence,OFFICIAL RECEIVER SERVICES                                                                          ,Staff Payment,BA0000279311,3.39,
BIS,The Insolvency Service,08/09/2014,Travel and Subsistence,PEOPLE & CAPABILITY                                                                                 ,Staff Payment,BA0000279311,4.48,
BIS,The Insolvency Service,08/09/2014,Travel and Subsistence,PEOPLE & CAPABILITY                                                                                 ,Staff Payment,BA0000279311,5.00,
BIS,The Insolvency Service,08/09/2014,Travel and Subsistence,PEOPLE & CAPABILITY                                                                                 ,Staff Payment,BA0000279311,9.25,
BIS,The Insolvency Service,08/09/2014,Employee Related Costs,OFFICIAL RECEIVER SERVICES                                                                          ,Staff Payment,BA0000279311,198.45,
BIS,The Insolvency Service,08/09/2014,Employee Related Costs,PEOPLE & CAPABILITY                                                                                 ,Staff Payment,BA0000279311,22.50,
BIS,The Insolvency Service,08/09/2014,Employee Related Costs,PEOPLE & CAPABILITY                                                                                 ,Staff Payment,BA0000279311,90.00,
BIS,The Insolvency Service,08/09/2014,Employee Related Costs,PEOPLE & CAPABILITY                                                                                 ,Staff Payment,BA0000279311,62.00,
BIS,The Insolvency Service,08/09/2014,Employee Related Costs,PEOPLE & CAPABILITY                                                                                 ,Staff Payment,BA0000279311,22.00,
BIS,The Insolvency Service,08/09/2014,Employee Related Costs,PEOPLE & CAPABILITY                                                                                 ,Staff Payment,BA0000279311,90.00,
BIS,The Insolvency Service,08/09/2014,Telecoms,BUSINESS SERVICES DIRECTORATE                                                                       ,SYNTEC LTD                                                  ,BA0000279301,446.81,810309963
BIS,The Insolvency Service,08/09/2014,Postage,FINANCE AND COMMERCIAL                                                                              ,TNT UK LTD,BA0000279303,160.68,354715057
BIS,The Insolvency Service,09/09/2014,Investigation and Enforcement Costs,INVESTIGATIONS & ENFORCEMENT                                                                        ,ABACUS EXPRESS,BA0000279332,18.81,417924146
BIS,The Insolvency Service,09/09/2014,Investigation and Enforcement Costs,INVESTIGATIONS & ENFORCEMENT                                                                        ,BURNESS PAULL & WILLIAMSONS SOLICITORS,BA0000279347,9.00,268398111
BIS,The Insolvency Service,09/09/2014,Investigation and Enforcement Costs,INVESTIGATIONS & ENFORCEMENT                                                                        ,BURNESS PAULL & WILLIAMSONS SOLICITORS,BA0000279347,"25,413.95",268398111
BIS,The Insolvency Service,09/09/2014,Investigation and Enforcement Costs,INVESTIGATIONS & ENFORCEMENT                                                                        ,BURNESS PAULL & WILLIAMSONS SOLICITORS,BA0000279347,813.20,268398111
BIS,The Insolvency Service,09/09/2014,Investigation and Enforcement Costs,INVESTIGATIONS & ENFORCEMENT                                                                        ,BURNESS PAULL & WILLIAMSONS SOLICITORS,BA0000279347,"8,965.72",268398111
BIS,The Insolvency Service,09/09/2014,Investigation and Enforcement Costs,INVESTIGATIONS & ENFORCEMENT                                                                        ,BURNESS PAULL & WILLIAMSONS SOLICITORS,BA0000279347,"2,820.10",268398111
BIS,The Insolvency Service,09/09/2014,Investigation and Enforcement Costs,INVESTIGATIONS & ENFORCEMENT                                                                        ,CLARKE WILLMOTT SOLICITORS,BA0000279336,338.59,129913060
BIS,The Insolvency Service,09/09/2014,Insolvency Case Related Costs,OFFICIAL RECEIVER SERVICES                                                                          ,COMPANIES HOUSE,BA0000279333,37.00,GD255
BIS,The Insolvency Service,09/09/2014,Insolvency Case Related Costs,OFFICIAL RECEIVER SERVICES                                                                          ,EXPERIAN QAS LTD,BA0000279340,"1,954.68",887133593
BIS,The Insolvency Service,09/09/2014,Insolvency Case Related Costs,OFFICIAL RECEIVER SERVICES                                                                          ,EXPERIAN QAS LTD,BA0000279341,"1,789.44",887133593
BIS,The Insolvency Service,09/09/2014,Investigation and Enforcement Costs,INVESTIGATIONS & ENFORCEMENT                                                                        ,HOWES PERCIVAL,BA0000279318,147.40,119523573
BIS,The Insolvency Service,09/09/2014,Investigation and Enforcement Costs,INVESTIGATIONS & ENFORCEMENT                                                                        ,HOWES PERCIVAL,BA0000279348,"3,222.00",119523573
BIS,The Insolvency Service,09/09/2014,Investigation and Enforcement Costs,INVESTIGATIONS & ENFORCEMENT                                                                        ,HOWES PERCIVAL,BA0000279348,"60,774.79",119523573
BIS,The Insolvency Service,09/09/2014,Accommodation,ESTATES,NPOWER BUSINESS,BA0000279338,"1,131.77",768362492
BIS,The Insolvency Service,09/09/2014,Accommodation,ESTATES,PPH COMMERCIAL,BA0000279344,"4,967.94",894414007
BIS,The Insolvency Service,09/09/2014,Accommodation,ESTATES,PPH COMMERCIAL,BA0000279345,"3,073.28",894414007
BIS,The Insolvency Service,09/09/2014,Postage,OFFICIAL RECEIVER SERVICES                                                                          ,ROYAL MAIL GROUP LTD,BA0000279330,12.32,243170002
BIS,The Insolvency Service,09/09/2014,Investigation and Enforcement Costs,INVESTIGATIONS & ENFORCEMENT                                                                        ,SHEPHERD & WEDDERBURN WS (SCOTTISH CASES)                   ,BA0000279339,"8,871.65",890559386
BIS,The Insolvency Service,09/09/2014,Investigation and Enforcement Costs,INVESTIGATIONS & ENFORCEMENT                                                                        ,SHEPHERD & WEDDERBURN WS (SCOTTISH CASES)                   ,BA0000279339,"23,273.29",890559386
BIS,The Insolvency Service,09/09/2014,Investigation and Enforcement Costs,INVESTIGATIONS & ENFORCEMENT                                                                        ,SHEPHERD & WEDDERBURN WS (SCOTTISH CASES)                   ,BA0000279339,515.30,890559386
BIS,The Insolvency Service,09/09/2014,Computer and IT Systems,FINANCE AND COMMERCIAL                                                                              ,SKYSCAPE CLOUD SERVICES                                     ,BA0000279327,855.92,122134958
BIS,The Insolvency Service,09/09/2014,Computer and IT Systems,INFORMATION TECHNOLOGY                                                                              ,SPRING TECHNOLOGY STAFFING,BA0000279343,"3,984.29",
BIS,The Insolvency Service,09/09/2014,Travel and Subsistence,INVESTIGATIONS & ENFORCEMENT                                                                        ,Staff Payment,BA0000279349,11.70,
BIS,The Insolvency Service,09/09/2014,Travel and Subsistence,OFFICIAL RECEIVER SERVICES                                                                          ,Staff Payment,BA0000279349,12.00,
BIS,The Insolvency Service,09/09/2014,Travel and Subsistence,OFFICIAL RECEIVER SERVICES                                                                          ,Staff Payment,BA0000279349,16.90,
BIS,The Insolvency Service,09/09/2014,Travel and Subsistence,OFFICIAL RECEIVER SERVICES                                                                          ,Staff Payment,BA0000279349,66.25,
BIS,The Insolvency Service,09/09/2014,Travel and Subsistence,OFFICIAL RECEIVER SERVICES                                                                          ,Staff Payment,BA0000279349,4.40,
BIS,The Insolvency Service,09/09/2014,Travel and Subsistence,INVESTIGATIONS & ENFORCEMENT                                                                        ,Staff Payment,BA0000279349,11.00,
BIS,The Insolvency Service,09/09/2014,Travel and Subsistence,INVESTIGATIONS & ENFORCEMENT                                                                        ,Staff Payment,BA0000279349,257.75,
BIS,The Insolvency Service,09/09/2014,Travel and Subsistence,OFFICIAL RECEIVER SERVICES                                                                          ,Staff Payment,BA0000279349,27.00,
BIS,The Insolvency Service,09/09/2014,Travel and Subsistence,OFFICIAL RECEIVER SERVICES                                                                          ,Staff Payment,BA0000279349,24.00,
BIS,The Insolvency Service,09/09/2014,Travel and Subsistence,OFFICIAL RECEIVER SERVICES                                                                          ,Staff Payment,BA0000279349,8.50,
BIS,The Insolvency Service,09/09/2014,Travel and Subsistence,OFFICIAL RECEIVER SERVICES                                                                          ,Staff Payment,BA0000279349,90.00,
BIS,The Insolvency Service,09/09/2014,Travel and Subsistence,OFFICIAL RECEIVER SERVICES                                                                          ,Staff Payment,BA0000279349,9.90,
BIS,The Insolvency Service,09/09/2014,Travel and Subsistence,OFFICIAL RECEIVER SERVICES                                                                          ,Staff Payment,BA0000279349,10.00,
BIS,The Insolvency Service,09/09/2014,Travel and Subsistence,OFFICIAL RECEIVER SERVICES                                                                          ,Staff Payment,BA0000279349,9.00,
BIS,The Insolvency Service,09/09/2014,Travel and Subsistence,OFFICIAL RECEIVER SERVICES                                                                          ,Staff Payment,BA0000279349,22.50,
BIS,The Insolvency Service,09/09/2014,Travel and Subsistence,OFFICIAL RECEIVER SERVICES                                                                          ,Staff Payment,BA0000279349,1.00,
BIS,The Insolvency Service,09/09/2014,Travel and Subsistence,OFFICIAL RECEIVER SERVICES                                                                          ,Staff Payment,BA0000279349,18.45,
BIS,The Insolvency Service,09/09/2014,Travel and Subsistence,OFFICIAL RECEIVER SERVICES                                                                          ,Staff Payment,BA0000279349,2.00,
BIS,The Insolvency Service,09/09/2014,Travel and Subsistence,OFFICIAL RECEIVER SERVICES                                                                          ,Staff Payment,BA0000279349,19.50,
BIS,The Insolvency Service,09/09/2014,Travel and Subsistence,OFFICIAL RECEIVER SERVICES                                                                          ,Staff Payment,BA0000279349,55.65,
BIS,The Insolvency Service,09/09/2014,Travel and Subsistence,OFFICIAL RECEIVER SERVICES                                                                          ,Staff Payment,BA0000279349,9.90,
BIS,The Insolvency Service,09/09/2014,Travel and Subsistence,OFFICIAL RECEIVER SERVICES                                                                          ,Staff Payment,BA0000279349,10.00,
BIS,The Insolvency Service,09/09/2014,Travel and Subsistence,OFFICIAL RECEIVER SERVICES                                                                          ,Staff Payment,BA0000279349,17.06,
BIS,The Insolvency Service,09/09/2014,Travel and Subsistence,OFFICIAL RECEIVER SERVICES                                                                          ,Staff Payment,BA0000279349,40.50,
BIS,The Insolvency Service,09/09/2014,Travel and Subsistence,OFFICIAL RECEIVER SERVICES                                                                          ,Staff Payment,BA0000279349,45.45,
BIS,The Insolvency Service,09/09/2014,Travel and Subsistence,OFFICIAL RECEIVER SERVICES                                                                          ,Staff Payment,BA0000279349,13.50,
BIS,The Insolvency Service,09/09/2014,Travel and Subsistence,OFFICIAL RECEIVER SERVICES                                                                          ,Staff Payment,BA0000279349,40.00,
BIS,The Insolvency Service,09/09/2014,Travel and Subsistence,OFFICIAL RECEIVER SERVICES                                                                          ,Staff Payment,BA0000279349,50.00,
BIS,The Insolvency Service,09/09/2014,Travel and Subsistence,OFFICIAL RECEIVER SERVICES                                                                          ,Staff Payment,BA0000279349,7.22,
BIS,The Insolvency Service,09/09/2014,Travel and Subsistence,PEOPLE & CAPABILITY                                                                                 ,Staff Payment,BA0000279349,5.10,
BIS,The Insolvency Service,09/09/2014,Travel and Subsistence,PEOPLE & CAPABILITY                                                                                 ,Staff Payment,BA0000279349,25.65,
BIS,The Insolvency Service,09/09/2014,Travel and Subsistence,INVESTIGATIONS & ENFORCEMENT                                                                        ,Staff Payment,BA0000279349,47.30,
BIS,The Insolvency Service,09/09/2014,Travel and Subsistence,BUSINESS SERVICES DIRECTORATE                                                                       ,Staff Payment,BA0000279349,13.09,
BIS,The Insolvency Service,09/09/2014,Travel and Subsistence,INVESTIGATIONS & ENFORCEMENT                                                                        ,Staff Payment,BA0000279349,28.20,
BIS,The Insolvency Service,09/09/2014,Travel and Subsistence,INVESTIGATIONS & ENFORCEMENT                                                                        ,Staff Payment,BA0000279349,33.54,
BIS,The Insolvency Service,09/09/2014,Travel and Subsistence,OFFICIAL RECEIVER SERVICES                                                                          ,Staff Payment,BA0000279349,4.25,
BIS,The Insolvency Service,09/09/2014,Travel and Subsistence,PEOPLE & CAPABILITY                                                                                 ,Staff Payment,BA0000279349,5.00,
BIS,The Insolvency Service,09/09/2014,Postage,FINANCE AND COMMERCIAL                                                                              ,TNT UK LTD,BA0000279328,34.43,354715057
BIS,The Insolvency Service,09/09/2014,Telecoms,INFORMATION TECHNOLOGY                                                                              ,VODAFONE - CABLE & WIRELESS COMMUNICATIONS,BA0000279342,"2,652.12",232303710
BIS,The Insolvency Service,09/09/2014,Telecoms,OFFICIAL RECEIVER SERVICES                                                                          ,VODAFONE - CABLE & WIRELESS COMMUNICATIONS,BA0000279331,465.85,232303710
BIS,The Insolvency Service,11/09/2014,Investigation and Enforcement Costs,INVESTIGATIONS & ENFORCEMENT                                                                        ,BOND DICKINSON                                              ,BA0000279361,"3,323.93",123392627
BIS,The Insolvency Service,11/09/2014,Investigation and Enforcement Costs,INVESTIGATIONS & ENFORCEMENT                                                                        ,BOND DICKINSON                                              ,BA0000279382,"8,832.00",
BIS,The Insolvency Service,11/09/2014,Insolvency Case Related Costs,OFFICIAL RECEIVER SERVICES                                                                          ,COMPANIES HOUSE,BA0000279385,15.00,GD255
BIS,The Insolvency Service,11/09/2014,Insolvency Case Related Costs,OFFICIAL RECEIVER SERVICES                                                                          ,COMPANIES HOUSE,BA0000279387,101.00,GD255
BIS,The Insolvency Service,11/09/2014,Insolvency Case Related Costs,OFFICIAL RECEIVER SERVICES                                                                          ,COMPANIES HOUSE,BA0000279388,11.00,GD255
BIS,The Insolvency Service,11/09/2014,Insolvency Case Related Costs,OFFICIAL RECEIVER SERVICES                                                                          ,COMPANIES HOUSE,BA0000279391,23.00,GD255
BIS,The Insolvency Service,11/09/2014,Telecoms,BUSINESS SERVICES DIRECTORATE                                                                       ,COMS.COM LTD                                                ,BA0000279375,420.00,847139114
BIS,The Insolvency Service,11/09/2014,Telecoms,BUSINESS SERVICES DIRECTORATE                                                                       ,COMS.COM LTD                                                ,BA0000279375,"2,556.41",847139114
BIS,The Insolvency Service,11/09/2014,Legal Costs,FINANCE AND COMMERCIAL                                                                              ,EVERSHEDS  LLP (LEEDS),BA0000279379,"26,855.03",820704559
BIS,The Insolvency Service,11/09/2014,Investigation and Enforcement Costs,INVESTIGATIONS & ENFORCEMENT                                                                        ,FTI CONSULTING LLP,BA0000279357,"6,963.50",867255490
BIS,The Insolvency Service,11/09/2014,Employee Related Costs,PEOPLE & CAPABILITY                                                                                 ,HEALTH MANAGEMENT LTD,BA0000279386,277.45,792250621
BIS,The Insolvency Service,11/09/2014,Employee Related Costs,PEOPLE & CAPABILITY                                                                                 ,HEALTH MANAGEMENT LTD,BA0000279369,"1,275.30",792250621
BIS,The Insolvency Service,11/09/2014,Employee Related Costs,PEOPLE & CAPABILITY                                                                                 ,HEALTH MANAGEMENT LTD,BA0000279393,-108.00,792250621
BIS,The Insolvency Service,11/09/2014,Investigation and Enforcement Costs,OFFICIAL RECEIVER SERVICES                                                                          ,HMCTS,BA0000279329,280.00,
BIS,The Insolvency Service,11/09/2014,Investigation and Enforcement Costs,INVESTIGATIONS & ENFORCEMENT                                                                        ,HOWES PERCIVAL,BA0000279358,250.04,119523573
BIS,The Insolvency Service,11/09/2014,Investigation and Enforcement Costs,INVESTIGATIONS & ENFORCEMENT                                                                        ,HOWES PERCIVAL,BA0000279358,"14,172.87",119523573
BIS,The Insolvency Service,11/09/2014,Investigation and Enforcement Costs,INVESTIGATIONS & ENFORCEMENT                                                                        ,HOWES PERCIVAL,BA0000279359,282.00,119523573
BIS,The Insolvency Service,11/09/2014,Investigation and Enforcement Costs,INVESTIGATIONS & ENFORCEMENT                                                                        ,HOWES PERCIVAL,BA0000279359,"30,814.59",119523573
BIS,The Insolvency Service,11/09/2014,Investigation and Enforcement Costs,INVESTIGATIONS & ENFORCEMENT                                                                        ,HOWES PERCIVAL,BA0000279360,"5,450.00",119523573
BIS,The Insolvency Service,11/09/2014,Investigation and Enforcement Costs,INVESTIGATIONS & ENFORCEMENT                                                                        ,HOWES PERCIVAL,BA0000279360,"21,344.61",119523573
BIS,The Insolvency Service,11/09/2014,Computer and IT Systems,FINANCE AND COMMERCIAL                                                                              ,ICS COMPUTING LTD,BA0000279381,"1,353.34",744086232
BIS,The Insolvency Service,11/09/2014,Insolvency Case Related Costs,OFFICIAL RECEIVER SERVICES                                                                          ,INSOLVENCY SERVICE,BA0000279384,20.00,
BIS,The Insolvency Service,11/09/2014,Accommodation,INVESTIGATIONS & ENFORCEMENT                                                                        ,IRON MOUNTAIN (UK) LTD,BA0000279354,70.50,607937516
BIS,The Insolvency Service,11/09/2014,Translation Costs,OFFICIAL RECEIVER SERVICES                                                                          ,K INTERNATIONAL PLC,BA0000279374,"3,054.91",600413800
BIS,The Insolvency Service,11/09/2014,Accounting and Banking,FINANCE AND COMMERCIAL,KYPERA LTD,BA0000279362,"1,530.00",813905437
BIS,The Insolvency Service,11/09/2014,Accounting and Banking,FINANCE AND COMMERCIAL,KYPERA LTD,BA0000279356,"6,643.80",813905437
BIS,The Insolvency Service,11/09/2014,Agency Workers,INFORMATION TECHNOLOGY                                                                              ,LA INTERNATIONAL COMPUTER CONSULTANTS LTD,BA0000279372,"10,495.92",
BIS,The Insolvency Service,11/09/2014,Agency Workers,CUSTOMER AND COMMUNICATIONS                                                                         ,MICHAEL PAGE INTERNATIONAL RECRUITMENT LTD,BA0000279380,"1,584.00",354259936
BIS,The Insolvency Service,11/09/2014,Computer and IT Systems,BUSINESS SERVICES DIRECTORATE                                                                       ,NORTHGATE INFORMATION SOLUTIONS UK LTD.,BA0000279377,"8,248.80",207588545
BIS,The Insolvency Service,11/09/2014,Computer and IT Systems,PROJECTS                                                                                            ,NORTHGATE INFORMATION SOLUTIONS UK LTD.,BA0000279378,"4,316.40",207588545
BIS,The Insolvency Service,11/09/2014,Postage,OFFICIAL RECEIVER SERVICES                                                                          ,ROYAL MAIL GROUP LTD,BA0000279389,100.35,243170002
BIS,The Insolvency Service,11/09/2014,Travel and Subsistence,BUSINESS SERVICES DIRECTORATE                                                                       ,Staff Payment,BA0000279368,1.50,
BIS,The Insolvency Service,11/09/2014,Travel and Subsistence,BUSINESS SERVICES DIRECTORATE                                                                       ,Staff Payment,BA0000279368,49.31,
BIS,The Insolvency Service,11/09/2014,Travel and Subsistence,FINANCE AND COMMERCIAL                                                                              ,Staff Payment,BA0000279368,26.00,
BIS,The Insolvency Service,11/09/2014,Travel and Subsistence,FINANCE AND COMMERCIAL                                                                              ,Staff Payment,BA0000279371,7.50,
BIS,The Insolvency Service,11/09/2014,Travel and Subsistence,FINANCE AND COMMERCIAL                                                                              ,Staff Payment,BA0000279368,18.30,
BIS,The Insolvency Service,11/09/2014,Travel and Subsistence,INVESTIGATIONS & ENFORCEMENT                                                                        ,Staff Payment,BA0000279368,12.60,
BIS,The Insolvency Service,11/09/2014,Travel and Subsistence,OFFICIAL RECEIVER SERVICES                                                                          ,Staff Payment,BA0000279368,12.00,
BIS,The Insolvency Service,11/09/2014,Travel and Subsistence,OFFICIAL RECEIVER SERVICES                                                                          ,Staff Payment,BA0000279371,9.00,
BIS,The Insolvency Service,11/09/2014,Travel and Subsistence,FINANCE AND COMMERCIAL                                                                              ,Staff Payment,BA0000279368,3.00,
BIS,The Insolvency Service,11/09/2014,Travel and Subsistence,FINANCE AND COMMERCIAL                                                                              ,Staff Payment,BA0000279371,30.00,
BIS,The Insolvency Service,11/09/2014,Travel and Subsistence,FINANCE AND COMMERCIAL                                                                              ,Staff Payment,BA0000279371,6.00,
BIS,The Insolvency Service,11/09/2014,Travel and Subsistence,FINANCE AND COMMERCIAL                                                                              ,Staff Payment,BA0000279371,10.80,
BIS,The Insolvency Service,11/09/2014,Travel and Subsistence,FINANCE AND COMMERCIAL                                                                              ,Staff Payment,BA0000279371,51.75,
BIS,The Insolvency Service,11/09/2014,Travel and Subsistence,INVESTIGATIONS & ENFORCEMENT                                                                        ,Staff Payment,BA0000279368,3.00,
BIS,The Insolvency Service,11/09/2014,Travel and Subsistence,INVESTIGATIONS & ENFORCEMENT                                                                        ,Staff Payment,BA0000279368,37.80,
BIS,The Insolvency Service,11/09/2014,Travel and Subsistence,INVESTIGATIONS & ENFORCEMENT                                                                        ,Staff Payment,BA0000279368,5.00,
BIS,The Insolvency Service,11/09/2014,Travel and Subsistence,INVESTIGATIONS & ENFORCEMENT                                                                        ,Staff Payment,BA0000279368,105.30,
BIS,The Insolvency Service,11/09/2014,Travel and Subsistence,INVESTIGATIONS & ENFORCEMENT                                                                        ,Staff Payment,BA0000279368,25.20,
BIS,The Insolvency Service,11/09/2014,Travel and Subsistence,INVESTIGATIONS & ENFORCEMENT                                                                        ,Staff Payment,BA0000279371,17.60,
BIS,The Insolvency Service,11/09/2014,Travel and Subsistence,INVESTIGATIONS & ENFORCEMENT                                                                        ,Staff Payment,BA0000279371,190.00,
BIS,The Insolvency Service,11/09/2014,Travel and Subsistence,OFFICIAL RECEIVER SERVICES                                                                          ,Staff Payment,BA0000279371,3.00,
BIS,The Insolvency Service,11/09/2014,Travel and Subsistence,OFFICIAL RECEIVER SERVICES                                                                          ,Staff Payment,BA0000279371,297.00,
BIS,The Insolvency Service,11/09/2014,Travel and Subsistence,OFFICIAL RECEIVER SERVICES                                                                          ,Staff Payment,BA0000279368,5.85,
BIS,The Insolvency Service,11/09/2014,Travel and Subsistence,OFFICIAL RECEIVER SERVICES                                                                          ,Staff Payment,BA0000279371,3.40,
BIS,The Insolvency Service,11/09/2014,Travel and Subsistence,OFFICIAL RECEIVER SERVICES                                                                          ,Staff Payment,BA0000279371,28.80,
BIS,The Insolvency Service,11/09/2014,Travel and Subsistence,OFFICIAL RECEIVER SERVICES                                                                          ,Staff Payment,BA0000279368,3.00,
BIS,The Insolvency Service,11/09/2014,Travel and Subsistence,OFFICIAL RECEIVER SERVICES                                                                          ,Staff Payment,BA0000279371,5.00,
BIS,The Insolvency Service,11/09/2014,Travel and Subsistence,OFFICIAL RECEIVER SERVICES                                                                          ,Staff Payment,BA0000279371,14.40,
BIS,The Insolvency Service,11/09/2014,Travel and Subsistence,OFFICIAL RECEIVER SERVICES                                                                          ,Staff Payment,BA0000279368,0.50,
BIS,The Insolvency Service,11/09/2014,Travel and Subsistence,OFFICIAL RECEIVER SERVICES                                                                          ,Staff Payment,BA0000279368,29.25,
BIS,The Insolvency Service,11/09/2014,Travel and Subsistence,OFFICIAL RECEIVER SERVICES                                                                          ,Staff Payment,BA0000279371,3.00,
BIS,The Insolvency Service,11/09/2014,Travel and Subsistence,OFFICIAL RECEIVER SERVICES                                                                          ,Staff Payment,BA0000279371,27.00,
BIS,The Insolvency Service,11/09/2014,Travel and Subsistence,OFFICIAL RECEIVER SERVICES                                                                          ,Staff Payment,BA0000279371,19.00,
BIS,The Insolvency Service,11/09/2014,Travel and Subsistence,OFFICIAL RECEIVER SERVICES                                                                          ,Staff Payment,BA0000279371,8.20,
BIS,The Insolvency Service,11/09/2014,Travel and Subsistence,OFFICIAL RECEIVER SERVICES                                                                          ,Staff Payment,BA0000279371,14.40,
BIS,The Insolvency Service,11/09/2014,Travel and Subsistence,OFFICIAL RECEIVER SERVICES                                                                          ,Staff Payment,BA0000279371,38.00,
BIS,The Insolvency Service,11/09/2014,Travel and Subsistence,OFFICIAL RECEIVER SERVICES                                                                          ,Staff Payment,BA0000279371,6.00,
BIS,The Insolvency Service,11/09/2014,Travel and Subsistence,OFFICIAL RECEIVER SERVICES                                                                          ,Staff Payment,BA0000279371,3.60,
BIS,The Insolvency Service,11/09/2014,Travel and Subsistence,OFFICIAL RECEIVER SERVICES                                                                          ,Staff Payment,BA0000279371,9.40,
BIS,The Insolvency Service,11/09/2014,Travel and Subsistence,PEOPLE & CAPABILITY                                                                                 ,Staff Payment,BA0000279371,20.00,
BIS,The Insolvency Service,11/09/2014,Travel and Subsistence,FINANCE AND COMMERCIAL                                                                              ,Staff Payment,BA0000279371,9.00,
BIS,The Insolvency Service,11/09/2014,Travel and Subsistence,FINANCE AND COMMERCIAL                                                                              ,Staff Payment,BA0000279371,10.00,
BIS,The Insolvency Service,11/09/2014,Travel and Subsistence,FINANCE AND COMMERCIAL                                                                              ,Staff Payment,BA0000279371,20.00,
BIS,The Insolvency Service,11/09/2014,Travel and Subsistence,FINANCE AND COMMERCIAL                                                                              ,Staff Payment,BA0000279368,8.70,
BIS,The Insolvency Service,11/09/2014,Travel and Subsistence,INVESTIGATIONS & ENFORCEMENT                                                                        ,Staff Payment,BA0000279368,9.80,
BIS,The Insolvency Service,11/09/2014,Travel and Subsistence,PEOPLE & CAPABILITY                                                                                 ,Staff Payment,BA0000279371,16.00,
BIS,The Insolvency Service,11/09/2014,Travel and Subsistence,EXTERNAL AFFAIRS                                                                                    ,Staff Payment,BA0000279368,21.50,
BIS,The Insolvency Service,11/09/2014,Travel and Subsistence,FINANCE AND COMMERCIAL                                                                              ,Staff Payment,BA0000279368,15.00,
BIS,The Insolvency Service,11/09/2014,Travel and Subsistence,FINANCE AND COMMERCIAL                                                                              ,Staff Payment,BA0000279371,10.68,
BIS,The Insolvency Service,11/09/2014,Travel and Subsistence,FINANCE AND COMMERCIAL                                                                              ,Staff Payment,BA0000279371,6.10,
BIS,The Insolvency Service,11/09/2014,Travel and Subsistence,FINANCE AND COMMERCIAL                                                                              ,Staff Payment,BA0000279371,45.55,
BIS,The Insolvency Service,11/09/2014,Travel and Subsistence,FINANCE AND COMMERCIAL                                                                              ,Staff Payment,BA0000279371,23.55,
BIS,The Insolvency Service,11/09/2014,Travel and Subsistence,FINANCE AND COMMERCIAL                                                                              ,Staff Payment,BA0000279371,4.25,
BIS,The Insolvency Service,11/09/2014,Travel and Subsistence,FINANCE AND COMMERCIAL                                                                              ,Staff Payment,BA0000279371,5.00,
BIS,The Insolvency Service,11/09/2014,Travel and Subsistence,FINANCE AND COMMERCIAL                                                                              ,Staff Payment,BA0000279371,10.00,
BIS,The Insolvency Service,11/09/2014,Travel and Subsistence,FINANCE AND COMMERCIAL                                                                              ,Staff Payment,BA0000279371,25.07,
BIS,The Insolvency Service,11/09/2014,Travel and Subsistence,FINANCE AND COMMERCIAL                                                                              ,Staff Payment,BA0000279371,19.60,
BIS,The Insolvency Service,11/09/2014,Travel and Subsistence,FINANCE AND COMMERCIAL                                                                              ,Staff Payment,BA0000279371,5.00,
BIS,The Insolvency Service,11/09/2014,Travel and Subsistence,FINANCE AND COMMERCIAL                                                                              ,Staff Payment,BA0000279371,18.00,
BIS,The Insolvency Service,11/09/2014,Travel and Subsistence,INVESTIGATIONS & ENFORCEMENT                                                                        ,Staff Payment,BA0000279368,4.30,
BIS,The Insolvency Service,11/09/2014,Travel and Subsistence,INVESTIGATIONS & ENFORCEMENT                                                                        ,Staff Payment,BA0000279368,5.00,
BIS,The Insolvency Service,11/09/2014,Travel and Subsistence,INVESTIGATIONS & ENFORCEMENT                                                                        ,Staff Payment,BA0000279368,15.00,
BIS,The Insolvency Service,11/09/2014,Travel and Subsistence,INVESTIGATIONS & ENFORCEMENT                                                                        ,Staff Payment,BA0000279368,9.35,
BIS,The Insolvency Service,11/09/2014,Travel and Subsistence,INVESTIGATIONS & ENFORCEMENT                                                                        ,Staff Payment,BA0000279371,30.00,
BIS,The Insolvency Service,11/09/2014,Travel and Subsistence,OFFICIAL RECEIVER SERVICES                                                                          ,Staff Payment,BA0000279371,10.00,
BIS,The Insolvency Service,11/09/2014,Travel and Subsistence,OFFICIAL RECEIVER SERVICES                                                                          ,Staff Payment,BA0000279368,30.00,
BIS,The Insolvency Service,11/09/2014,Travel and Subsistence,OFFICIAL RECEIVER SERVICES                                                                          ,Staff Payment,BA0000279371,5.00,
BIS,The Insolvency Service,11/09/2014,Travel and Subsistence,OFFICIAL RECEIVER SERVICES                                                                          ,Staff Payment,BA0000279368,5.00,
BIS,The Insolvency Service,11/09/2014,Travel and Subsistence,OFFICIAL RECEIVER SERVICES                                                                          ,Staff Payment,BA0000279371,5.00,
BIS,The Insolvency Service,11/09/2014,Travel and Subsistence,OFFICIAL RECEIVER SERVICES                                                                          ,Staff Payment,BA0000279371,14.73,
BIS,The Insolvency Service,11/09/2014,Travel and Subsistence,OFFICIAL RECEIVER SERVICES                                                                          ,Staff Payment,BA0000279371,6.94,
BIS,The Insolvency Service,11/09/2014,Travel and Subsistence,PEOPLE & CAPABILITY                                                                                 ,Staff Payment,BA0000279371,1.09,
BIS,The Insolvency Service,11/09/2014,Insolvency Case Related Costs,INVESTIGATIONS & ENFORCEMENT                                                                        ,Staff Payment,BA0000279368,7.00,
BIS,The Insolvency Service,11/09/2014,Accounting and Banking,BUSINESS SERVICES DIRECTORATE                                                                       ,Staff Payment,BA0000279368,22.76,
BIS,The Insolvency Service,11/09/2014,Conferences,INVESTIGATIONS & ENFORCEMENT                                                                        ,THE CONFERENCE NETWORK LTD,BA0000279355,198.00,835653902
BIS,The Insolvency Service,11/09/2014,Postage,INVESTIGATIONS & ENFORCEMENT                                                                        ,TNT UK LTD,BA0000279383,11.52,354715057
BIS,The Insolvency Service,11/09/2014,Postage,INVESTIGATIONS & ENFORCEMENT                                                                        ,TNT UK LTD,BA0000279351,16.04,354715057
BIS,The Insolvency Service,11/09/2014,Accommodation,ESTATES,VEOLIA ES (UK) LTD,BA0000279392,85.57,530008893
BIS,The Insolvency Service,12/09/2014,Agency Workers,FINANCE AND COMMERCIAL                                                                              ,CAPITA RESOURCING LTD,BA0000279415,"3,900.00",618184140
BIS,The Insolvency Service,12/09/2014,Agency Workers,INFORMATION TECHNOLOGY                                                                              ,CAPITA RESOURCING LTD,BA0000279411,"1,658.02",618184140
BIS,The Insolvency Service,12/09/2014,Accommodation,ESTATES,CBRE RICHARD ELLIS CBRE LTD,BA0000279413,"58,352.86",
BIS,The Insolvency Service,12/09/2014,Accommodation,ESTATES,CBRE RICHARD ELLIS CBRE LTD,BA0000279413,"20,142.25",
BIS,The Insolvency Service,12/09/2014,Insolvency Case Related Costs,OFFICIAL RECEIVER SERVICES                                                                          ,COMPANIES HOUSE,BA0000279405,6.00,GD255
BIS,The Insolvency Service,12/09/2014,Insolvency Case Related Costs,OFFICIAL RECEIVER SERVICES                                                                          ,COMPANIES HOUSE,BA0000279408,26.00,GD255
BIS,The Insolvency Service,12/09/2014,Insolvency Case Related Costs,OFFICIAL RECEIVER SERVICES                                                                          ,COMPANIES HOUSE,BA0000279409,403.00,GD255
BIS,The Insolvency Service,12/09/2014,Accommodation,ESTATES,MARITIME & COASTGUARD AGENCY,BA0000279414,"21,326.63",
BIS,The Insolvency Service,12/09/2014,Accommodation,ESTATES,MARITIME & COASTGUARD AGENCY,BA0000279414,"13,400.00",
BIS,The Insolvency Service,12/09/2014,Postage,BUSINESS SERVICES DIRECTORATE                                                                       ,NEOPOST LTD - FRANKING TOP UPS,BA0000279402,100.00,
BIS,The Insolvency Service,12/09/2014,Postage,BUSINESS SERVICES DIRECTORATE                                                                       ,NEOPOST LTD - FRANKING TOP UPS,BA0000279402,300.00,
BIS,The Insolvency Service,12/09/2014,Postage,BUSINESS SERVICES DIRECTORATE                                                                       ,NEOPOST LTD - FRANKING TOP UPS,BA0000279402,410.00,
BIS,The Insolvency Service,12/09/2014,Postage,BUSINESS SERVICES DIRECTORATE                                                                       ,NEOPOST LTD - FRANKING TOP UPS,BA0000279402,800.00,
BIS,The Insolvency Service,12/09/2014,Postage,INFORMATION TECHNOLOGY                                                                              ,NEOPOST LTD - FRANKING TOP UPS,BA0000279402,"5,000.00",
BIS,The Insolvency Service,12/09/2014,Postage,OFFICIAL RECEIVER SERVICES                                                                          ,NEOPOST LTD - FRANKING TOP UPS,BA0000279402,200.00,
BIS,The Insolvency Service,12/09/2014,Postage,OFFICIAL RECEIVER SERVICES                                                                          ,NEOPOST LTD - FRANKING TOP UPS,BA0000279402,200.00,
BIS,The Insolvency Service,12/09/2014,Postage,OFFICIAL RECEIVER SERVICES                                                                          ,NEOPOST LTD - FRANKING TOP UPS,BA0000279402,400.00,
BIS,The Insolvency Service,12/09/2014,Postage,OFFICIAL RECEIVER SERVICES                                                                          ,NEOPOST LTD - FRANKING TOP UPS,BA0000279402,590.00,
BIS,The Insolvency Service,12/09/2014,Postage,OFFICIAL RECEIVER SERVICES                                                                          ,NEOPOST LTD - FRANKING TOP UPS,BA0000279402,600.00,
BIS,The Insolvency Service,12/09/2014,Postage,OFFICIAL RECEIVER SERVICES                                                                          ,NEOPOST LTD - FRANKING TOP UPS,BA0000279402,700.00,
BIS,The Insolvency Service,12/09/2014,Postage,OFFICIAL RECEIVER SERVICES                                                                          ,NEOPOST LTD - FRANKING TOP UPS,BA0000279402,"1,000.00",
BIS,The Insolvency Service,12/09/2014,Computer and IT Systems,PROJECTS                                                                                            ,NORTHGATE INFORMATION SOLUTIONS UK LTD.,BA0000279416,"259,513.32",207588545
BIS,The Insolvency Service,12/09/2014,Agency Workers,OFFICIAL RECEIVER SERVICES                                                                          ,SHAW TRUST LTD,BA0000279410,"1,187.84",399017616
BIS,The Insolvency Service,12/09/2014,Telecoms,INFORMATION TECHNOLOGY                                                                              ,TBA                                                         ,BA0000279407,720.00,888825550
BIS,The Insolvency Service,12/09/2014,Computer and IT Systems,FINANCE AND COMMERCIAL                                                                              ,THOUGHTWORKS LTD                                            ,BA0000279403,"99,028.00",788600983
BIS,The Insolvency Service,12/09/2014,Office Supplies and Services,CUSTOMER AND COMMUNICATIONS                                                                         ,WILLIAMS LEA LTD,BA0000279412,"8,208.00",662774703
BIS,The Insolvency Service,12/09/2014,Investigation and Enforcement Costs,INVESTIGATIONS & ENFORCEMENT                                                                        ,WRAGGE LAWRENCE GRAHAM  & CO                                ,BA0000279401,"7,688.80",858698838
BIS,The Insolvency Service,15/09/2014,Agency Workers,FINANCE AND COMMERCIAL,ALLEN LANE LIMITED,BA0000279456,"2,675.52",835970985
BIS,The Insolvency Service,15/09/2014,Agency Workers,FINANCE AND COMMERCIAL                                                                              ,CAPITA INTERIM MANAGEMENT,BA0000279455,"3,108.78",618184140
BIS,The Insolvency Service,15/09/2014,Travel and Subsistence,BUSINESS SERVICES DIRECTORATE                                                                       ,CITY CABS (EDINBURGH) LTD,BA0000279444,147.34,270679436
BIS,The Insolvency Service,15/09/2014,Insolvency Case Related Costs,BUSINESS SERVICES DIRECTORATE                                                                       ,COMPANIES HOUSE,BA0000279439,259.00,GD255
BIS,The Insolvency Service,15/09/2014,Insolvency Case Related Costs,OFFICIAL RECEIVER SERVICES                                                                          ,COMPANIES HOUSE,BA0000279446,167.00,GD255
BIS,The Insolvency Service,15/09/2014,Insolvency Case Related Costs,OFFICIAL RECEIVER SERVICES                                                                          ,COMPANIES HOUSE,BA0000279450,105.00,GD255
BIS,The Insolvency Service,15/09/2014,Insolvency Case Related Costs,OFFICIAL RECEIVER SERVICES                                                                          ,COMPANIES HOUSE,BA0000279451,202.00,GD255
BIS,The Insolvency Service,15/09/2014,Insolvency Case Related Costs,OFFICIAL RECEIVER SERVICES                                                                          ,COMPANIES HOUSE,BA0000279452,65.00,GD255
BIS,The Insolvency Service,15/09/2014,Insolvency Case Related Costs,OFFICIAL RECEIVER SERVICES                                                                          ,COMPANIES HOUSE,BA0000279453,25.00,GD255
BIS,The Insolvency Service,15/09/2014,Insolvency Case Related Costs,OFFICIAL RECEIVER SERVICES                                                                          ,FRANK G. BOWEN LTD,BA0000279447,75.60,238504366
BIS,The Insolvency Service,15/09/2014,Insolvency Case Related Costs,OFFICIAL RECEIVER SERVICES                                                                          ,FRANK G. BOWEN LTD,BA0000279448,75.60,238504366
BIS,The Insolvency Service,15/09/2014,Insolvency Case Related Costs,OFFICIAL RECEIVER SERVICES                                                                          ,FRANK G. BOWEN LTD,BA0000279449,210.00,238504366
BIS,The Insolvency Service,15/09/2014,Telecoms,BUSINESS SERVICES DIRECTORATE                                                                       ,GAMMA BUSINESS COMMUNICATIONS LTD,BA0000279422,35.12,823820344
BIS,The Insolvency Service,15/09/2014,Telecoms,BUSINESS SERVICES DIRECTORATE                                                                       ,GAMMA BUSINESS COMMUNICATIONS LTD,BA0000279422,136.15,823820344
BIS,The Insolvency Service,15/09/2014,Telecoms,FINANCE AND COMMERCIAL                                                                              ,GAMMA BUSINESS COMMUNICATIONS LTD,BA0000279422,583.92,823820344
BIS,The Insolvency Service,15/09/2014,Telecoms,INFORMATION TECHNOLOGY                                                                              ,GAMMA BUSINESS COMMUNICATIONS LTD,BA0000279422,126.79,823820344
BIS,The Insolvency Service,15/09/2014,Telecoms,OFFICIAL RECEIVER SERVICES                                                                          ,GAMMA BUSINESS COMMUNICATIONS LTD,BA0000279422,40.02,823820344
BIS,The Insolvency Service,15/09/2014,Telecoms,OFFICIAL RECEIVER SERVICES                                                                          ,GAMMA BUSINESS COMMUNICATIONS LTD,BA0000279422,48.58,823820344
BIS,The Insolvency Service,15/09/2014,Telecoms,OFFICIAL RECEIVER SERVICES                                                                          ,GAMMA BUSINESS COMMUNICATIONS LTD,BA0000279422,61.60,823820344
BIS,The Insolvency Service,15/09/2014,Telecoms,OFFICIAL RECEIVER SERVICES                                                                          ,GAMMA BUSINESS COMMUNICATIONS LTD,BA0000279422,61.80,823820344
BIS,The Insolvency Service,15/09/2014,Telecoms,OFFICIAL RECEIVER SERVICES                                                                          ,GAMMA BUSINESS COMMUNICATIONS LTD,BA0000279422,68.14,823820344
BIS,The Insolvency Service,15/09/2014,Telecoms,OFFICIAL RECEIVER SERVICES                                                                          ,GAMMA BUSINESS COMMUNICATIONS LTD,BA0000279422,78.84,823820344
BIS,The Insolvency Service,15/09/2014,Telecoms,OFFICIAL RECEIVER SERVICES                                                                          ,GAMMA BUSINESS COMMUNICATIONS LTD,BA0000279422,95.79,823820344
BIS,The Insolvency Service,15/09/2014,Telecoms,OFFICIAL RECEIVER SERVICES                                                                          ,GAMMA BUSINESS COMMUNICATIONS LTD,BA0000279422,120.40,823820344
BIS,The Insolvency Service,15/09/2014,Telecoms,OFFICIAL RECEIVER SERVICES                                                                          ,GAMMA BUSINESS COMMUNICATIONS LTD,BA0000279422,126.39,823820344
BIS,The Insolvency Service,15/09/2014,Telecoms,OFFICIAL RECEIVER SERVICES                                                                          ,GAMMA BUSINESS COMMUNICATIONS LTD,BA0000279422,126.93,823820344
BIS,The Insolvency Service,15/09/2014,Telecoms,OFFICIAL RECEIVER SERVICES                                                                          ,GAMMA BUSINESS COMMUNICATIONS LTD,BA0000279422,152.10,823820344
BIS,The Insolvency Service,15/09/2014,Telecoms,OFFICIAL RECEIVER SERVICES                                                                          ,GAMMA BUSINESS COMMUNICATIONS LTD,BA0000279422,175.08,823820344
BIS,The Insolvency Service,15/09/2014,Telecoms,OFFICIAL RECEIVER SERVICES                                                                          ,GAMMA BUSINESS COMMUNICATIONS LTD,BA0000279422,239.78,823820344
BIS,The Insolvency Service,15/09/2014,Telecoms,OFFICIAL RECEIVER SERVICES                                                                          ,GAMMA BUSINESS COMMUNICATIONS LTD,BA0000279422,244.96,823820344
BIS,The Insolvency Service,15/09/2014,Telecoms,OFFICIAL RECEIVER SERVICES                                                                          ,GAMMA BUSINESS COMMUNICATIONS LTD,BA0000279422,250.06,823820344
BIS,The Insolvency Service,15/09/2014,Telecoms,OFFICIAL RECEIVER SERVICES                                                                          ,GAMMA BUSINESS COMMUNICATIONS LTD,BA0000279422,342.44,823820344
BIS,The Insolvency Service,15/09/2014,Insolvency Case Related Costs,OFFICIAL RECEIVER SERVICES                                                                          ,HPI LTD,BA0000279436,9.48,942407139
BIS,The Insolvency Service,15/09/2014,Agency Workers,FINANCE AND COMMERCIAL,HUDSON GLOBAL RESOURCES LTD,BA0000279454,"2,247.36",
BIS,The Insolvency Service,15/09/2014,Agency Workers,CUSTOMER AND COMMUNICATIONS                                                                         ,MICHAEL PAGE INTERNATIONAL RECRUITMENT LTD,BA0000279438,643.94,354259936
BIS,The Insolvency Service,15/09/2014,Agency Workers,CUSTOMER AND COMMUNICATIONS                                                                         ,MICHAEL PAGE INTERNATIONAL RECRUITMENT LTD,BA0000279458,"2,112.00",354259936
BIS,The Insolvency Service,15/09/2014,Computer and IT Systems,INFORMATION TECHNOLOGY                                                                              ,SPRING TECHNOLOGY STAFFING,BA0000279434,"2,834.36",
BIS,The Insolvency Service,15/09/2014,Computer and IT Systems,INFORMATION TECHNOLOGY                                                                              ,SPRING TECHNOLOGY STAFFING,BA0000279435,"2,845.92",
BIS,The Insolvency Service,15/09/2014,Postage,BUSINESS SERVICES DIRECTORATE                                                                       ,TNT UK LTD,BA0000279440,104.45,354715057
BIS,The Insolvency Service,15/09/2014,Postage,BUSINESS SERVICES DIRECTORATE                                                                       ,TNT UK LTD,BA0000279441,0.87,354715057
BIS,The Insolvency Service,15/09/2014,Postage,BUSINESS SERVICES DIRECTORATE                                                                       ,TNT UK LTD,BA0000279442,184.58,354715057
BIS,The Insolvency Service,15/09/2014,Postage,BUSINESS SERVICES DIRECTORATE                                                                       ,TNT UK LTD,BA0000279443,17.39,354715057
BIS,The Insolvency Service,15/09/2014,Office Supplies and Services,BUSINESS SERVICES DIRECTORATE                                                                       ,WATER COOLERS LTD,BA0000279445,70.53,
BIS,The Insolvency Service,15/09/2014,Investigation and Enforcement Costs,INVESTIGATIONS & ENFORCEMENT                                                                        ,WRAGGE & CO,BA0000279425,"60,252.17",
BIS,The Insolvency Service,16/09/2014,Agency Workers,FINANCE AND COMMERCIAL                                                                              ,ALLEN LANE LIMITED,BA0000279480,477.37,835970985
BIS,The Insolvency Service,16/09/2014,Agency Workers,FINANCE AND COMMERCIAL                                                                              ,ALLEN LANE LIMITED,BA0000279474,"2,386.86",835970985
BIS,The Insolvency Service,16/09/2014,Agency Workers,FINANCE AND COMMERCIAL                                                                              ,ALLEN LANE LIMITED,BA0000279475,"2,386.86",835970985
BIS,The Insolvency Service,16/09/2014,Investigation and Enforcement Costs,INVESTIGATIONS & ENFORCEMENT                                                                        ,BAKER TILLY,BA0000279472,"4,600.00",890965570
BIS,The Insolvency Service,16/09/2014,Investigation and Enforcement Costs,INVESTIGATIONS & ENFORCEMENT                                                                        ,BAKER TILLY,BA0000279473,"3,900.00",890965570
BIS,The Insolvency Service,16/09/2014,Investigation and Enforcement Costs,INVESTIGATIONS & ENFORCEMENT                                                                        ,BOND DICKINSON                                              ,BA0000279470,"74,506.12",123392627
BIS,The Insolvency Service,16/09/2014,Investigation and Enforcement Costs,INVESTIGATIONS & ENFORCEMENT                                                                        ,BOND DICKINSON                                              ,BA0000279470,"79,263.41",123392627
BIS,The Insolvency Service,16/09/2014,Investigation and Enforcement Costs,INVESTIGATIONS & ENFORCEMENT                                                                        ,BOND DICKINSON                                              ,BA0000279470,"1,983.80",123392627
BIS,The Insolvency Service,16/09/2014,Investigation and Enforcement Costs,INVESTIGATIONS & ENFORCEMENT                                                                        ,BOND DICKINSON                                              ,BA0000279470,"5,564.00",123392627
BIS,The Insolvency Service,16/09/2014,Investigation and Enforcement Costs,INVESTIGATIONS & ENFORCEMENT                                                                        ,BOND DICKINSON                                              ,BA0000279470,"7,378.99",123392627
BIS,The Insolvency Service,16/09/2014,Investigation and Enforcement Costs,INVESTIGATIONS & ENFORCEMENT                                                                        ,BOND DICKINSON                                              ,BA0000279470,"27,661.35",123392627
BIS,The Insolvency Service,16/09/2014,Postage,OFFICIAL RECEIVER SERVICES                                                                          ,CITY SPRINT UK LTD,BA0000279478,75.99,
BIS,The Insolvency Service,16/09/2014,Office Supplies and Services,BUSINESS SERVICES DIRECTORATE                                                                       ,EC GROUP,BA0000279469,"1,217.13",235525471
BIS,The Insolvency Service,16/09/2014,Accommodation,OFFICIAL RECEIVER SERVICES                                                                          ,FRANK G. BOWEN LTD,BA0000279482,144.00,238504366
BIS,The Insolvency Service,16/09/2014,Computer and IT Systems,INFORMATION TECHNOLOGY                                                                              ,PARITY PROFESSIONALS LTD                                    ,BA0000279476,"15,737.82",649913985
BIS,The Insolvency Service,16/09/2014,Computer and IT Systems,INFORMATION TECHNOLOGY                                                                              ,PARITY PROFESSIONALS LTD                                    ,BA0000279477,"8,001.42",649913985
BIS,The Insolvency Service,16/09/2014,Computer and IT Systems,INFORMATION TECHNOLOGY                                                                              ,WEBEX  COMMUNICATIONS UK LTD,BA0000279484,144.00,815974302
BIS,The Insolvency Service,16/09/2014,Investigation and Enforcement Costs,INVESTIGATIONS & ENFORCEMENT                                                                        ,WRAGGE LAWRENCE GRAHAM  & CO                                ,BA0000279471,"85,415.48",858698838
BIS,The Insolvency Service,16/09/2014,Investigation and Enforcement Costs,INVESTIGATIONS & ENFORCEMENT                                                                        ,WRAGGE LAWRENCE GRAHAM  & CO                                ,BA0000279479,481.80,858698838
BIS,The Insolvency Service,17/09/2014,Insolvency Case Related Costs,OFFICIAL RECEIVER SERVICES                                                                          ,COMPANIES HOUSE,BA0000279504,20.00,GD255
BIS,The Insolvency Service,17/09/2014,Insolvency Case Related Costs,OFFICIAL RECEIVER SERVICES                                                                          ,COMPANIES HOUSE,BA0000279505,54.00,GD255
BIS,The Insolvency Service,17/09/2014,Insolvency Case Related Costs,OFFICIAL RECEIVER SERVICES                                                                          ,COMPANIES HOUSE,BA0000279506,34.00,GD255
BIS,The Insolvency Service,17/09/2014,Insolvency Case Related Costs,OFFICIAL RECEIVER SERVICES                                                                          ,COMPANIES HOUSE,BA0000279509,4.00,GD255
BIS,The Insolvency Service,17/09/2014,Insolvency Case Related Costs,OFFICIAL RECEIVER SERVICES                                                                          ,COMPANIES HOUSE,BA0000279513,11.00,GD255
BIS,The Insolvency Service,17/09/2014,Insolvency Case Related Costs,OFFICIAL RECEIVER SERVICES                                                                          ,COMPANIES HOUSE,BA0000279514,48.00,GD255
BIS,The Insolvency Service,17/09/2014,Insolvency Case Related Costs,OFFICIAL RECEIVER SERVICES                                                                          ,COMPANIES HOUSE,BA0000279516,21.00,GD255
BIS,The Insolvency Service,17/09/2014,Investigation and Enforcement Costs,INVESTIGATIONS & ENFORCEMENT                                                                        ,HOWES PERCIVAL,BA0000279497,"25,000.00",
BIS,The Insolvency Service,17/09/2014,Office Machinery,BUSINESS SERVICES DIRECTORATE                                                                       ,INTERSERVE FS (UK) LTD DATA CENTRE CLEANING & IT HYGIENE    ,BA0000279511,373.96,
BIS,The Insolvency Service,17/09/2014,Department for Business Innovation and Skills,PEOPLE & CAPABILITY                                                                                 ,MYCSP LTD,BA0000279502,197.38,
BIS,The Insolvency Service,17/09/2014,Training Costs,PEOPLE & CAPABILITY                                                                                 ,NORTH GROVE CONSULTANCY LTD,BA0000279515,770.95,825581516
BIS,The Insolvency Service,17/09/2014,Postage,OFFICIAL RECEIVER SERVICES                                                                          ,ROYAL MAIL GROUP LTD,BA0000279507,10.11,243170002
BIS,The Insolvency Service,17/09/2014,Postage,OFFICIAL RECEIVER SERVICES                                                                          ,ROYAL MAIL GROUP LTD,BA0000279508,90.00,243170002
BIS,The Insolvency Service,17/09/2014,Postage,OFFICIAL RECEIVER SERVICES                                                                          ,ROYAL MAIL GROUP LTD,BA0000279512,7.50,243170002
BIS,The Insolvency Service,17/09/2014,Travel and Subsistence,CUSTOMER AND COMMUNICATIONS                                                                         ,Staff Payment,BA0000279498,56.75,
BIS,The Insolvency Service,17/09/2014,Travel and Subsistence,INVESTIGATIONS & ENFORCEMENT                                                                        ,Staff Payment,BA0000279498,11.00,
BIS,The Insolvency Service,17/09/2014,Travel and Subsistence,FINANCE AND COMMERCIAL                                                                              ,Staff Payment,BA0000279498,49.50,
BIS,The Insolvency Service,17/09/2014,Travel and Subsistence,CUSTOMER AND COMMUNICATIONS                                                                         ,Staff Payment,BA0000279498,27.00,
BIS,The Insolvency Service,17/09/2014,Travel and Subsistence,FINANCE AND COMMERCIAL                                                                              ,Staff Payment,BA0000279498,10.00,
BIS,The Insolvency Service,17/09/2014,Travel and Subsistence,CUSTOMER AND COMMUNICATIONS                                                                         ,Staff Payment,BA0000279498,5.00,
BIS,The Insolvency Service,17/09/2014,Travel and Subsistence,CUSTOMER AND COMMUNICATIONS                                                                         ,Staff Payment,BA0000279498,10.70,
BIS,The Insolvency Service,17/09/2014,Travel and Subsistence,INVESTIGATIONS & ENFORCEMENT                                                                        ,Staff Payment,BA0000279498,7.20,
BIS,The Insolvency Service,17/09/2014,Travel and Subsistence,INVESTIGATIONS & ENFORCEMENT                                                                        ,Staff Payment,BA0000279498,3.35,
BIS,The Insolvency Service,17/09/2014,Employee Related Costs,INVESTIGATIONS & ENFORCEMENT                                                                        ,Staff Payment,BA0000279498,4.25,
BIS,The Insolvency Service,17/09/2014,Travel and Subsistence,BUSINESS SERVICES DIRECTORATE                                                                       ,Staff Payment,BA0000279498,70.00,
BIS,The Insolvency Service,17/09/2014,Travel and Subsistence,OFFICIAL RECEIVER SERVICES                                                                          ,Staff Payment,BA0000279498,71.00,
BIS,The Insolvency Service,17/09/2014,Travel and Subsistence,FINANCE AND COMMERCIAL                                                                              ,Staff Payment,BA0000279498,3.10,
BIS,The Insolvency Service,17/09/2014,Travel and Subsistence,INVESTIGATIONS & ENFORCEMENT                                                                        ,Staff Payment,BA0000279498,11.00,
BIS,The Insolvency Service,17/09/2014,Travel and Subsistence,OFFICIAL RECEIVER SERVICES                                                                          ,Staff Payment,BA0000279498,3.65,
BIS,The Insolvency Service,17/09/2014,Travel and Subsistence,OFFICIAL RECEIVER SERVICES                                                                          ,Staff Payment,BA0000279498,3.30,
BIS,The Insolvency Service,17/09/2014,Travel and Subsistence,OFFICIAL RECEIVER SERVICES                                                                          ,Staff Payment,BA0000279498,22.60,
BIS,The Insolvency Service,17/09/2014,Travel and Subsistence,OFFICIAL RECEIVER SERVICES                                                                          ,Staff Payment,BA0000279498,9.00,
BIS,The Insolvency Service,17/09/2014,Travel and Subsistence,OFFICIAL RECEIVER SERVICES                                                                          ,Staff Payment,BA0000279498,2.20,
BIS,The Insolvency Service,17/09/2014,Travel and Subsistence,OFFICIAL RECEIVER SERVICES                                                                          ,Staff Payment,BA0000279498,69.40,
BIS,The Insolvency Service,17/09/2014,Travel and Subsistence,OFFICIAL RECEIVER SERVICES                                                                          ,Staff Payment,BA0000279498,9.00,
BIS,The Insolvency Service,17/09/2014,Travel and Subsistence,PEOPLE & CAPABILITY                                                                                 ,Staff Payment,BA0000279498,87.00,
BIS,The Insolvency Service,17/09/2014,Travel and Subsistence,BUSINESS SERVICES DIRECTORATE                                                                       ,Staff Payment,BA0000279498,0.50,
BIS,The Insolvency Service,17/09/2014,Travel and Subsistence,BUSINESS SERVICES DIRECTORATE                                                                       ,Staff Payment,BA0000279498,298.85,
BIS,The Insolvency Service,17/09/2014,Travel and Subsistence,BUSINESS SERVICES DIRECTORATE                                                                       ,Staff Payment,BA0000279498,221.85,
BIS,The Insolvency Service,17/09/2014,Travel and Subsistence,ESTATES,Staff Payment,BA0000279498,108.00,
BIS,The Insolvency Service,17/09/2014,Travel and Subsistence,FINANCE AND COMMERCIAL                                                                              ,Staff Payment,BA0000279498,139.50,
BIS,The Insolvency Service,17/09/2014,Travel and Subsistence,FINANCE AND COMMERCIAL                                                                              ,Staff Payment,BA0000279498,23.00,
BIS,The Insolvency Service,17/09/2014,Travel and Subsistence,INVESTIGATIONS & ENFORCEMENT                                                                        ,Staff Payment,BA0000279498,4.50,
BIS,The Insolvency Service,17/09/2014,Travel and Subsistence,INVESTIGATIONS & ENFORCEMENT                                                                        ,Staff Payment,BA0000279498,100.80,
BIS,The Insolvency Service,17/09/2014,Travel and Subsistence,INVESTIGATIONS & ENFORCEMENT                                                                        ,Staff Payment,BA0000279498,8.00,
BIS,The Insolvency Service,17/09/2014,Travel and Subsistence,INVESTIGATIONS & ENFORCEMENT                                                                        ,Staff Payment,BA0000279498,216.00,
BIS,The Insolvency Service,17/09/2014,Travel and Subsistence,OFFICIAL RECEIVER SERVICES                                                                          ,Staff Payment,BA0000279498,9.00,
BIS,The Insolvency Service,17/09/2014,Travel and Subsistence,OFFICIAL RECEIVER SERVICES                                                                          ,Staff Payment,BA0000279498,15.00,
BIS,The Insolvency Service,17/09/2014,Travel and Subsistence,OFFICIAL RECEIVER SERVICES                                                                          ,Staff Payment,BA0000279498,12.00,
BIS,The Insolvency Service,17/09/2014,Travel and Subsistence,OFFICIAL RECEIVER SERVICES                                                                          ,Staff Payment,BA0000279498,8.10,
BIS,The Insolvency Service,17/09/2014,Travel and Subsistence,OFFICIAL RECEIVER SERVICES                                                                          ,Staff Payment,BA0000279498,1.50,
BIS,The Insolvency Service,17/09/2014,Travel and Subsistence,OFFICIAL RECEIVER SERVICES                                                                          ,Staff Payment,BA0000279498,17.55,
BIS,The Insolvency Service,17/09/2014,Travel and Subsistence,OFFICIAL RECEIVER SERVICES                                                                          ,Staff Payment,BA0000279498,7.00,
BIS,The Insolvency Service,17/09/2014,Travel and Subsistence,OFFICIAL RECEIVER SERVICES                                                                          ,Staff Payment,BA0000279498,10.80,
BIS,The Insolvency Service,17/09/2014,Travel and Subsistence,OFFICIAL RECEIVER SERVICES                                                                          ,Staff Payment,BA0000279498,10.90,
BIS,The Insolvency Service,17/09/2014,Travel and Subsistence,OFFICIAL RECEIVER SERVICES                                                                          ,Staff Payment,BA0000279498,39.60,
BIS,The Insolvency Service,17/09/2014,Travel and Subsistence,OFFICIAL RECEIVER SERVICES                                                                          ,Staff Payment,BA0000279498,8.00,
BIS,The Insolvency Service,17/09/2014,Travel and Subsistence,OFFICIAL RECEIVER SERVICES                                                                          ,Staff Payment,BA0000279498,2.00,
BIS,The Insolvency Service,17/09/2014,Travel and Subsistence,OFFICIAL RECEIVER SERVICES                                                                          ,Staff Payment,BA0000279498,23.40,
BIS,The Insolvency Service,17/09/2014,Travel and Subsistence,OFFICIAL RECEIVER SERVICES                                                                          ,Staff Payment,BA0000279498,32.40,
BIS,The Insolvency Service,17/09/2014,Travel and Subsistence,OFFICIAL RECEIVER SERVICES                                                                          ,Staff Payment,BA0000279498,2.00,
BIS,The Insolvency Service,17/09/2014,Travel and Subsistence,OFFICIAL RECEIVER SERVICES                                                                          ,Staff Payment,BA0000279498,14.40,
BIS,The Insolvency Service,17/09/2014,Travel and Subsistence,OFFICIAL RECEIVER SERVICES                                                                          ,Staff Payment,BA0000279498,43.20,
BIS,The Insolvency Service,17/09/2014,Travel and Subsistence,OFFICIAL RECEIVER SERVICES                                                                          ,Staff Payment,BA0000279498,2.25,
BIS,The Insolvency Service,17/09/2014,Travel and Subsistence,OFFICIAL RECEIVER SERVICES                                                                          ,Staff Payment,BA0000279498,23.40,
BIS,The Insolvency Service,17/09/2014,Travel and Subsistence,OFFICIAL RECEIVER SERVICES                                                                          ,Staff Payment,BA0000279498,0.50,
BIS,The Insolvency Service,17/09/2014,Travel and Subsistence,OFFICIAL RECEIVER SERVICES                                                                          ,Staff Payment,BA0000279498,38.70,
BIS,The Insolvency Service,17/09/2014,Travel and Subsistence,OFFICIAL RECEIVER SERVICES                                                                          ,Staff Payment,BA0000279498,7.03,
BIS,The Insolvency Service,17/09/2014,Travel and Subsistence,OFFICIAL RECEIVER SERVICES                                                                          ,Staff Payment,BA0000279498,2.70,
BIS,The Insolvency Service,17/09/2014,Travel and Subsistence,OFFICIAL RECEIVER SERVICES                                                                          ,Staff Payment,BA0000279498,21.60,
BIS,The Insolvency Service,17/09/2014,Travel and Subsistence,OFFICIAL RECEIVER SERVICES                                                                          ,Staff Payment,BA0000279498,43.65,
BIS,The Insolvency Service,17/09/2014,Travel and Subsistence,OFFICIAL RECEIVER SERVICES                                                                          ,Staff Payment,BA0000279498,10.00,
BIS,The Insolvency Service,17/09/2014,Travel and Subsistence,OFFICIAL RECEIVER SERVICES                                                                          ,Staff Payment,BA0000279498,2.10,
BIS,The Insolvency Service,17/09/2014,Travel and Subsistence,OFFICIAL RECEIVER SERVICES                                                                          ,Staff Payment,BA0000279498,16.65,
BIS,The Insolvency Service,17/09/2014,Travel and Subsistence,OFFICIAL RECEIVER SERVICES                                                                          ,Staff Payment,BA0000279498,10.00,
BIS,The Insolvency Service,17/09/2014,Travel and Subsistence,PEOPLE & CAPABILITY                                                                                 ,Staff Payment,BA0000279498,6.00,
BIS,The Insolvency Service,17/09/2014,Travel and Subsistence,PEOPLE & CAPABILITY                                                                                 ,Staff Payment,BA0000279498,12.30,
BIS,The Insolvency Service,17/09/2014,Travel and Subsistence,PEOPLE & CAPABILITY                                                                                 ,Staff Payment,BA0000279498,18.00,
BIS,The Insolvency Service,17/09/2014,Travel and Subsistence,PEOPLE & CAPABILITY                                                                                 ,Staff Payment,BA0000279498,18.00,
BIS,The Insolvency Service,17/09/2014,Travel and Subsistence,PEOPLE & CAPABILITY                                                                                 ,Staff Payment,BA0000279498,18.00,
BIS,The Insolvency Service,17/09/2014,Travel and Subsistence,PEOPLE & CAPABILITY                                                                                 ,Staff Payment,BA0000279498,18.00,
BIS,The Insolvency Service,17/09/2014,Travel and Subsistence,FINANCE AND COMMERCIAL                                                                              ,Staff Payment,BA0000279498,7.00,
BIS,The Insolvency Service,17/09/2014,Travel and Subsistence,FINANCE AND COMMERCIAL                                                                              ,Staff Payment,BA0000279498,5.00,
BIS,The Insolvency Service,17/09/2014,Travel and Subsistence,INVESTIGATIONS & ENFORCEMENT                                                                        ,Staff Payment,BA0000279498,8.90,
BIS,The Insolvency Service,17/09/2014,Travel and Subsistence,OFFICIAL RECEIVER SERVICES                                                                          ,Staff Payment,BA0000279498,13.80,
BIS,The Insolvency Service,17/09/2014,Travel and Subsistence,OFFICIAL RECEIVER SERVICES                                                                          ,Staff Payment,BA0000279498,5.10,
BIS,The Insolvency Service,17/09/2014,Travel and Subsistence,OFFICIAL RECEIVER SERVICES                                                                          ,Staff Payment,BA0000279498,11.00,
BIS,The Insolvency Service,17/09/2014,Travel and Subsistence,OFFICIAL RECEIVER SERVICES                                                                          ,Staff Payment,BA0000279498,3.60,
BIS,The Insolvency Service,17/09/2014,Travel and Subsistence,BUSINESS SERVICES DIRECTORATE                                                                       ,Staff Payment,BA0000279498,28.58,
BIS,The Insolvency Service,17/09/2014,Travel and Subsistence,BUSINESS SERVICES DIRECTORATE                                                                       ,Staff Payment,BA0000279498,8.39,
BIS,The Insolvency Service,17/09/2014,Travel and Subsistence,BUSINESS SERVICES DIRECTORATE                                                                       ,Staff Payment,BA0000279498,27.70,
BIS,The Insolvency Service,17/09/2014,Travel and Subsistence,BUSINESS SERVICES DIRECTORATE                                                                       ,Staff Payment,BA0000279498,11.70,
BIS,The Insolvency Service,17/09/2014,Travel and Subsistence,BUSINESS SERVICES DIRECTORATE                                                                       ,Staff Payment,BA0000279498,4.29,
BIS,The Insolvency Service,17/09/2014,Travel and Subsistence,FINANCE AND COMMERCIAL                                                                              ,Staff Payment,BA0000279498,26.00,
BIS,The Insolvency Service,17/09/2014,Travel and Subsistence,FINANCE AND COMMERCIAL                                                                              ,Staff Payment,BA0000279498,3.00,
BIS,The Insolvency Service,17/09/2014,Travel and Subsistence,FINANCE AND COMMERCIAL                                                                              ,Staff Payment,BA0000279498,22.95,
BIS,The Insolvency Service,17/09/2014,Travel and Subsistence,FINANCE AND COMMERCIAL                                                                              ,Staff Payment,BA0000279498,5.00,
BIS,The Insolvency Service,17/09/2014,Travel and Subsistence,FINANCE AND COMMERCIAL                                                                              ,Staff Payment,BA0000279498,15.00,
BIS,The Insolvency Service,17/09/2014,Travel and Subsistence,INVESTIGATIONS & ENFORCEMENT                                                                        ,Staff Payment,BA0000279498,5.00,
BIS,The Insolvency Service,17/09/2014,Travel and Subsistence,INVESTIGATIONS & ENFORCEMENT                                                                        ,Staff Payment,BA0000279498,5.00,
BIS,The Insolvency Service,17/09/2014,Travel and Subsistence,INVESTIGATIONS & ENFORCEMENT                                                                        ,Staff Payment,BA0000279498,5.00,
BIS,The Insolvency Service,17/09/2014,Travel and Subsistence,INVESTIGATIONS & ENFORCEMENT                                                                        ,Staff Payment,BA0000279498,1.94,
BIS,The Insolvency Service,17/09/2014,Travel and Subsistence,INVESTIGATIONS & ENFORCEMENT                                                                        ,Staff Payment,BA0000279498,6.19,
BIS,The Insolvency Service,17/09/2014,Travel and Subsistence,INVESTIGATIONS & ENFORCEMENT                                                                        ,Staff Payment,BA0000279498,19.27,
BIS,The Insolvency Service,17/09/2014,Travel and Subsistence,OFFICIAL RECEIVER SERVICES                                                                          ,Staff Payment,BA0000279498,45.00,
BIS,The Insolvency Service,17/09/2014,Travel and Subsistence,OFFICIAL RECEIVER SERVICES                                                                          ,Staff Payment,BA0000279498,74.99,
BIS,The Insolvency Service,17/09/2014,Travel and Subsistence,OFFICIAL RECEIVER SERVICES                                                                          ,Staff Payment,BA0000279498,25.00,
BIS,The Insolvency Service,17/09/2014,Travel and Subsistence,OFFICIAL RECEIVER SERVICES                                                                          ,Staff Payment,BA0000279498,14.70,
BIS,The Insolvency Service,17/09/2014,Travel and Subsistence,OFFICIAL RECEIVER SERVICES                                                                          ,Staff Payment,BA0000279498,6.55,
BIS,The Insolvency Service,17/09/2014,Travel and Subsistence,OFFICIAL RECEIVER SERVICES                                                                          ,Staff Payment,BA0000279498,27.90,
BIS,The Insolvency Service,17/09/2014,Travel and Subsistence,OFFICIAL RECEIVER SERVICES                                                                          ,Staff Payment,BA0000279498,4.80,
BIS,The Insolvency Service,17/09/2014,Travel and Subsistence,OFFICIAL RECEIVER SERVICES                                                                          ,Staff Payment,BA0000279498,4.00,
BIS,The Insolvency Service,17/09/2014,Travel and Subsistence,OFFICIAL RECEIVER SERVICES                                                                          ,Staff Payment,BA0000279498,22.33,
BIS,The Insolvency Service,17/09/2014,Travel and Subsistence,OFFICIAL RECEIVER SERVICES                                                                          ,Staff Payment,BA0000279498,5.00,
BIS,The Insolvency Service,17/09/2014,Travel and Subsistence,OFFICIAL RECEIVER SERVICES                                                                          ,Staff Payment,BA0000279498,12.75,
BIS,The Insolvency Service,17/09/2014,Travel and Subsistence,OFFICIAL RECEIVER SERVICES                                                                          ,Staff Payment,BA0000279498,10.00,
BIS,The Insolvency Service,17/09/2014,Travel and Subsistence,PEOPLE & CAPABILITY                                                                                 ,Staff Payment,BA0000279498,19.59,
BIS,The Insolvency Service,17/09/2014,Travel and Subsistence,PEOPLE & CAPABILITY                                                                                 ,Staff Payment,BA0000279498,30.05,
BIS,The Insolvency Service,17/09/2014,Employee Related Costs,PEOPLE & CAPABILITY                                                                                 ,Staff Payment,BA0000279498,20.00,
BIS,The Insolvency Service,17/09/2014,Employee Related Costs,PEOPLE & CAPABILITY                                                                                 ,Staff Payment,BA0000279498,90.00,
BIS,The Insolvency Service,17/09/2014,Training Costs,INVESTIGATIONS & ENFORCEMENT                                                                        ,Staff Payment,BA0000279498,42.00,
BIS,The Insolvency Service,17/09/2014,Postage,INVESTIGATIONS & ENFORCEMENT                                                                        ,TNT UK LTD,BA0000279503,5.38,354715057
BIS,The Insolvency Service,18/09/2014,Accommodation,FINANCE AND COMMERCIAL                                                                              ,ABEL ALARM COMPANY LTD.,BA0000279569,564.00,399803395
